Body Name,Body,Service Level,Expense Type,Expense Code,Narrative,Date,Transaction Number,Amount,Capital and Revenue,Supplier Name,Supplier ID
South Ribble Council,http://statistics.data.gov.uk/doc/local-authority/30UN,Customer Contact,Peripherals,4247,"Please supply 2 x Epson V550 Scanner, as discussed 4.2.16",04/03/2016,0000400831,314.00,Revenue,ACS SYSTEMS UK LTD,00070166
South Ribble Council,http://statistics.data.gov.uk/doc/local-authority/30UN,Area 2 - Waste Transport/Eastern & Central Teams,External Contractors Charges,4570,"Insurance Excess, AE12AXR, JFC6376. (Phil)",24/03/2016,0000406533,250.00,Revenue,AEBI SCHMIDT UK LTD,00085672
South Ribble Council,http://statistics.data.gov.uk/doc/local-authority/30UN,Area 2 - Waste Transport/Eastern & Central Teams,External Contractors Charges,4570,ANNUAL CONTRACT FEE FOR AE14 AYG - 1/3/16 UNTIL 28/2/17,16/03/2016,0000406906,"6,204.00",Revenue,AEBI SCHMIDT UK LTD,00085672
South Ribble Council,http://statistics.data.gov.uk/doc/local-authority/30UN,Area 2 - Waste Transport/Eastern & Central Teams,External Contractors Charges,4570,ANNUAL CONTRACT FEE FOR AE14 AYF - 1/3/16 UNTIL 28/2/17,16/03/2016,0000406906,"6,204.00",Revenue,AEBI SCHMIDT UK LTD,00085672
South Ribble Council,http://statistics.data.gov.uk/doc/local-authority/30UN,Area 2 - Waste Transport/Eastern & Central Teams,External Contractors Charges,4570,insurance excess,24/03/2016,0000407209,271.17,Revenue,AEBI SCHMIDT UK LTD,00085672
South Ribble Council,http://statistics.data.gov.uk/doc/local-authority/30UN,Area 2 - Waste Transport/Eastern & Central Teams,External Contractors Charges,4570,1 SPEC REPAIR - AE12 AXR - JFC6476 - BO,31/03/2016,0000412384,293.13,Revenue,AEBI SCHMIDT UK LTD,00085672
South Ribble Council,http://statistics.data.gov.uk/doc/local-authority/30UN,Revenues Plus,Financial,4811,post office trans,09/03/2016,0000406580,417.54,Revenue,ALLPAY LTD,00122276
South Ribble Council,http://statistics.data.gov.uk/doc/local-authority/30UN,Revenues Plus,Financial,4811,pay point trans,09/03/2016,0000406580,117.39,Revenue,ALLPAY LTD,00122276
South Ribble Council,http://statistics.data.gov.uk/doc/local-authority/30UN,Revenues Plus,Financial,4811,webconnect,09/03/2016,0000406580,46.00,Revenue,ALLPAY LTD,00122276
South Ribble Council,http://statistics.data.gov.uk/doc/local-authority/30UN,Property Services,Rep & Maint Premises,2020,ADDRESS REDACTED,09/03/2016,0000406699,"5,285.99",Revenue,NAME REDACTED,131213
South Ribble Council,http://statistics.data.gov.uk/doc/local-authority/30UN,Regeneration,Other Misc,4851,Consultancy,02/03/2016,0000401447,"1,333.00",Revenue,ARMSTRONG CONSULTING,131444
South Ribble Council,http://statistics.data.gov.uk/doc/local-authority/30UN,Regeneration,Other Misc,4851,Project activities and sundries,04/03/2016,0000406585,348.50,Revenue,ARMSTRONG CONSULTING,131444
South Ribble Council,http://statistics.data.gov.uk/doc/local-authority/30UN,Development Enterprise & Comm Mgnt,Other Misc,485I,2016 Annual Membership Fee @625.00,31/03/2016,0000412358,625.00,Revenue,Association of Town Centre Management,131926
South Ribble Council,http://statistics.data.gov.uk/doc/local-authority/30UN,Area 2 - Waste Transport/Eastern & Central Teams,External Contractors Charges,4570,renewal of business breakdown cover.  REF. 1072982-1653145 1.4.16 - 31.3.17,09/03/2016,0000406587,276.60,Revenue,AUTOMOBILE ASSOCIATION,00014685
South Ribble Council,http://statistics.data.gov.uk/doc/local-authority/30UN,Property Services,Advertising,4842,"Letting agent fees in respect of ADDRESS REDACTED, Walton Summit",09/03/2016,0000406536,"1,134.38",Revenue,BAILEY DEAKIN & HAMILTONS,131087
South Ribble Council,http://statistics.data.gov.uk/doc/local-authority/30UN,Property Services,Advertising,4842,"Letting agent fees in respect of unit ADDRESS REDACTED, Walton Summit",16/03/2016,0000407133,"1,134.38",Revenue,BAILEY DEAKIN & HAMILTONS,131087
South Ribble Council,http://statistics.data.gov.uk/doc/local-authority/30UN,Area 3 - Parks/Leyland East West,Grounds Maint Cntrctrs Chgs,4657,Various trees and whips as per the attached list. ,24/03/2016,0000407134,630.00,Revenue,BANNISTER HALL LANDSCAPE SUPPLIES,00117786
South Ribble Council,http://statistics.data.gov.uk/doc/local-authority/30UN,Area 3 - Parks/Leyland East West,Grounds Maint Cntrctrs Chgs,4657,Various trees and whips as per the attached list. ,24/03/2016,0000407135,"1,763.60",Revenue,BANNISTER HALL LANDSCAPE SUPPLIES,00117786
South Ribble Council,http://statistics.data.gov.uk/doc/local-authority/30UN,Area 3 - Parks/Leyland East West,Materials General,4046,PLEASE PROVIDE PLANTS ON ATTACHED LIST,31/03/2016,0000412387,608.00,Revenue,BANNISTER HALL LANDSCAPE SUPPLIES,00117786
South Ribble Council,http://statistics.data.gov.uk/doc/local-authority/30UN,Regeneration,Capital Expenditure,C234,Retention payment,09/03/2016,0000406619,"1,576.72",Revenue,BARTON GRANGE GROUP LTD T/A BARTON GRAN,00082031
South Ribble Council,http://statistics.data.gov.uk/doc/local-authority/30UN,Property Services,Rep & Maint Premises,2020,Requested by DR Please supply goods and labour remove old electrical equipment and install a new 48,09/03/2016,0000406538,973.00,Revenue,BELEC ELECTRICAL LTD,130290
South Ribble Council,http://statistics.data.gov.uk/doc/local-authority/30UN,Property Services,Rep & Maint Premises,2020,Attend Leyland market to wire switches and install lighting,16/03/2016,0000406701,365.16,Revenue,BELEC ELECTRICAL LTD,130290
South Ribble Council,http://statistics.data.gov.uk/doc/local-authority/30UN,Property Services,Rep & Maint Premises,2020,ADDRESS REDACTED Please attend the site - carry out work to produce an electrical certificate,16/03/2016,0000406818,766.14,Revenue,BELEC ELECTRICAL LTD,130290
South Ribble Council,http://statistics.data.gov.uk/doc/local-authority/30UN,Property Services,Rep & Maint Premises,2020,carry out work for the installation of an electrical supply  for a new door and contacts at the civic centre,11/03/2016,0000406820,352.00,Revenue,BELEC ELECTRICAL LTD,130290
South Ribble Council,http://statistics.data.gov.uk/doc/local-authority/30UN,Property Services,Rep & Maint Premises,2020,Please repair the light on the 3rd floor at the civic centre,11/03/2016,0000406820,22.00,Revenue,BELEC ELECTRICAL LTD,130290
South Ribble Council,http://statistics.data.gov.uk/doc/local-authority/30UN,Property Services,Rep & Maint Premises,2020,Please repair the fuse in  the mains box in the corridor to AVACAB at Bison Place,11/03/2016,0000406820,44.00,Revenue,BELEC ELECTRICAL LTD,130290
South Ribble Council,http://statistics.data.gov.uk/doc/local-authority/30UN,Property Services,Rep & Maint Premises,2020,materials used,11/03/2016,0000406820,35.82,Revenue,BELEC ELECTRICAL LTD,130290
South Ribble Council,http://statistics.data.gov.uk/doc/local-authority/30UN,Property Services,Rep & Maint Premises,2020,Annual Contract 2015/2016 Electrical Testing and Electrical  Installation Test at Museum,16/03/2016,0000406898,310.52,Revenue,BELEC ELECTRICAL LTD,130290
South Ribble Council,http://statistics.data.gov.uk/doc/local-authority/30UN,Property Services,Rep & Maint Premises,2020,Annual Contract  2015/2016 for Electrical Testing/Electrical Installation Test at Worden Arts Centre,16/03/2016,0000407136,396.00,Revenue,BELEC ELECTRICAL LTD,130290
South Ribble Council,http://statistics.data.gov.uk/doc/local-authority/30UN,Property Services,Rep & Maint Premises,2020,Annual Contract  2015/2016 for Electrical Testing/Electrical Installation Test at Worden Park North Wing,16/03/2016,0000407137,396.00,Revenue,BELEC ELECTRICAL LTD,130290
South Ribble Council,http://statistics.data.gov.uk/doc/local-authority/30UN,Property Services,Rep & Maint Premises,2020,Annual Contract 2015/2016 Electrical Testing and Electrical  Installation Test at Civic Centre,16/03/2016,0000407138,374.00,Revenue,BELEC ELECTRICAL LTD,130290
South Ribble Council,http://statistics.data.gov.uk/doc/local-authority/30UN,Property Services,Rep & Maint Premises,2020,Annual Contract 2015/2016 Electrical Testing and Electrical  Installation Test at Leyland Market,16/03/2016,0000407139,396.00,Revenue,BELEC ELECTRICAL LTD,130290
South Ribble Council,http://statistics.data.gov.uk/doc/local-authority/30UN,Property Services,Rep & Maint Premises,2020,undertake repair at Moss Side depot following power outage,18/03/2016,0000407211,44.00,Revenue,BELEC ELECTRICAL LTD,130290
South Ribble Council,http://statistics.data.gov.uk/doc/local-authority/30UN,Property Services,Rep & Maint Premises,2020,tidy up electrics at craft unit 2 Worden park. Also sort the electrical trunking to craft unit 3/4,18/03/2016,0000407211,289.70,Revenue,BELEC ELECTRICAL LTD,130290
South Ribble Council,http://statistics.data.gov.uk/doc/local-authority/30UN,Property Services,Rep & Maint Premises,2020,"repair the hand dryer at crossroads toilets, worden park",18/03/2016,0000407211,51.76,Revenue,BELEC ELECTRICAL LTD,130290
South Ribble Council,http://statistics.data.gov.uk/doc/local-authority/30UN,Property Services,Rep & Maint Premises,2020,Annual Contract 2015/2016 Electrical Testing and Electrical  Installation at Kingsfold Community Centre,31/03/2016,0000407564,352.00,Revenue,BELEC ELECTRICAL LTD,130290
South Ribble Council,http://statistics.data.gov.uk/doc/local-authority/30UN,Healthy Communities,Other Misc,4851,3 x Set of 6 Speed Stacking Cups � SE1246 - 21.30 1 x Set of 12 Sets of 6 Speed Stacking Cups ,18/03/2016,0000407255,797.99,Revenue,Bishop Sports & Leisure Ltd,131843
South Ribble Council,http://statistics.data.gov.uk/doc/local-authority/30UN,Area 3 - Parks/Leyland East West,Materials General,4040,Two-leg steel lectern inc A2 Multiguard panel on 19mm backing board to artwork agreed  Black Finish,09/03/2016,0000406620,"1,040.00",Revenue,BORDER SIGNS AND GRAPHIX,130927
South Ribble Council,http://statistics.data.gov.uk/doc/local-authority/30UN,Area 3 - Parks/Leyland East West,Materials General,4040,Shipping,09/03/2016,0000406620,60.00,Revenue,BORDER SIGNS AND GRAPHIX,130927
South Ribble Council,http://statistics.data.gov.uk/doc/local-authority/30UN,Property Services,Rep & Maint Premises,2020,Please supply construction drawings for the civic centre as discussed with property services.,11/03/2016,0000406866,990.00,Revenue,BRAMLEY-PATE & PARTNERS,00093091
South Ribble Council,http://statistics.data.gov.uk/doc/local-authority/30UN,Regeneration,Capital Expenditure,C305,Community Bids Fund Grant: Defribrillator,24/03/2016,0000407534,500.00,Revenue,BRITISH COMMERCIAL VEHICLE MUSEUM,00051897
South Ribble Council,http://statistics.data.gov.uk/doc/local-authority/30UN,Healthy Communities,Other Misc,4851,cover work undertaken for January 2016 for South Ribble Borough Council at various schools,02/03/2016,0000401198,500.00,Revenue,BROWNEDGE ST MARYS R C HIGH SCHOOL,00015707
South Ribble Council,http://statistics.data.gov.uk/doc/local-authority/30UN,Healthy Communities,Other Misc,4851,Delivery of: Jacqui Lowe Tennis coaching `Active School` Coaching Programme Sept - March 2016,09/03/2016,0000406540,555.00,Revenue,BROWNEDGE ST MARYS R C HIGH SCHOOL,00015707
South Ribble Council,http://statistics.data.gov.uk/doc/local-authority/30UN,Healthy Communities,Other Misc,4851,Delivery of: Jacqui Lowe Tennis coaching `Active School` Coaching Programme Sept - March 2016,16/03/2016,0000406846,510.00,Revenue,BROWNEDGE ST MARYS R C HIGH SCHOOL,00015707
South Ribble Council,http://statistics.data.gov.uk/doc/local-authority/30UN,Regeneration,Other Misc,4851,Payment for delivery of: Neil Quinn Rugby Coaching 2 schools during June/July 2015,11/03/2016,0000406847,550.00,Revenue,BROWNEDGE ST MARYS R C HIGH SCHOOL,00015707
South Ribble Council,http://statistics.data.gov.uk/doc/local-authority/30UN,Healthy Communities,Other Misc,4851,cover work undertaken  for January 2016 for SRBC at various schools,24/03/2016,0000407569,925.00,Revenue,BROWNEDGE ST MARYS R C HIGH SCHOOL,00015707
South Ribble Council,http://statistics.data.gov.uk/doc/local-authority/30UN,Healthy Communities,Other Misc,4851,Payment for the delivery of: Sarah Norris for Dance Coaching for the Active School coaching programme,24/03/2016,0000407570,400.00,Revenue,BROWNEDGE ST MARYS R C HIGH SCHOOL,00015707
South Ribble Council,http://statistics.data.gov.uk/doc/local-authority/30UN,Healthy Communities,Other Misc,4851,Payment for the delivery of: Sarah Norris for Dance Coaching for the Active School coaching programme,24/03/2016,0000407571,"1,125.00",Revenue,BROWNEDGE ST MARYS R C HIGH SCHOOL,00015707
South Ribble Council,http://statistics.data.gov.uk/doc/local-authority/30UN,Healthy Communities,Other Misc,4851,Payment for the delivery of Sarah Norris for Dance Coaching for the Active School coaching programme,24/03/2016,0000407572,"1,075.00",Revenue,BROWNEDGE ST MARYS R C HIGH SCHOOL,00015707
South Ribble Council,http://statistics.data.gov.uk/doc/local-authority/30UN,Healthy Communities,Other Misc,4851,1 x Upright Lockable Storage Trolley,11/03/2016,0000406621,439.00,Revenue,BROXAP LTD,00028736
South Ribble Council,http://statistics.data.gov.uk/doc/local-authority/30UN,Area 3 - Parks/Leyland East West,Grounds Maint Cntrctrs Chgs,4657,BXPU 1539-RM MANCHESTER REMOVABLE BOLLARDS,24/03/2016,0000407507,760.00,Revenue,BROXAP LTD,00028736
South Ribble Council,http://statistics.data.gov.uk/doc/local-authority/30UN,Area 3 - Parks/Leyland East West,Grounds Maint Cntrctrs Chgs,4657,DELIVERY,24/03/2016,0000407507,70.00,Revenue,BROXAP LTD,00028736
South Ribble Council,http://statistics.data.gov.uk/doc/local-authority/30UN,Democratic Services,Balance Sheet,0140,Payment to settle the 2015 Parliamentary Election Account,04/03/2016,0000406544,"4,249.72",Revenue,"Cabinet Office, Elections Claims Unit",131856
South Ribble Council,http://statistics.data.gov.uk/doc/local-authority/30UN,Revenues Plus,Professional Fees,4520,End of year seminar 4 delegates,09/03/2016,0000401258,"1,365.00",Revenue,CAPITA BUSINESS SERVICES LTD,00122179
South Ribble Council,http://statistics.data.gov.uk/doc/local-authority/30UN,Revenues Plus,Equipment,C261,Connect,09/03/2016,0000401511,"41,000.00",Revenue,CAPITA BUSINESS SERVICES LTD,00122179
South Ribble Council,http://statistics.data.gov.uk/doc/local-authority/30UN,Revenues Plus,Peripherals,4242,Removal of family premium for CTS,09/03/2016,0000406639,"1,330.00",Revenue,CAPITA BUSINESS SERVICES LTD,00122179
South Ribble Council,http://statistics.data.gov.uk/doc/local-authority/30UN,Revenues Plus,Peripherals,4242,LA Data Share Programme etc,11/03/2016,0000406865,"5,640.05",Revenue,CAPITA BUSINESS SERVICES LTD,00117948
South Ribble Council,http://statistics.data.gov.uk/doc/local-authority/30UN,Information Services,Peripherals,4248,Revenues & Benefits Development Fund 01/04/16 - 31/03/17,18/03/2016,0000407264,"9,193.00",Revenue,CAPITA BUSINESS SERVICES LTD,00122179
South Ribble Council,http://statistics.data.gov.uk/doc/local-authority/30UN,Information Services,Peripherals,4248,Revenues & Benefits Maintenance Schedule for period 01/04/16 - 31/03/17,24/03/2016,0000407265,"39,234.64",Revenue,CAPITA BUSINESS SERVICES LTD,00122179
South Ribble Council,http://statistics.data.gov.uk/doc/local-authority/30UN,Area 3 - Parks/Leyland East West,Capital Expenditure,C230,Site Visit & Repair proposals report including draining and spec for Eastern Boundary Retaining Wall,31/03/2016,0000412333,"1,050.00",Revenue,Capstone Consulting Engineeers Ltd,131694
South Ribble Council,http://statistics.data.gov.uk/doc/local-authority/30UN,Property Services,Operational Furniture & Equip,4010,supply a defibrillator and associated equipment as detailed in quotation KG160106 to the civic centre.,18/03/2016,0000406545,"1,505.00",Revenue,Cardiac Science (UK) Ltd,131830
South Ribble Council,http://statistics.data.gov.uk/doc/local-authority/30UN,Area 2 - Waste Transport/Eastern & Central Teams,External Contractors Charges,4570,"1 spec repair, PJ62 UCM, JFC6449. ",24/03/2016,0000407286,264.00,Revenue,CENTRAL DIESEL,00077282
South Ribble Council,http://statistics.data.gov.uk/doc/local-authority/30UN,Shared Financial Services,External Contractors Charges,4570,Shared Financial Services April 2015 to March 2016,31/03/2016,0000407595,"144,000.00",Revenue,CHORLEY BOROUGH COUNCIL,00017352
South Ribble Council,http://statistics.data.gov.uk/doc/local-authority/30UN,Shared Financial Services,Professional Fees,4510,Reimbursement of costs in respect of Treasury Services provided by Capita Treasury Solutions 15/16,31/03/2016,0000407596,"7,100.00",Revenue,CHORLEY BOROUGH COUNCIL,00017352
South Ribble Council,http://statistics.data.gov.uk/doc/local-authority/30UN,Scrutiny,Subs to Statutory Bodies,4720,One place for `Certificate in Corporate Governance` course starting in London on 22 March 2016,18/03/2016,0000406436,"1,500.00",Revenue,CIPFA,00017187
South Ribble Council,http://statistics.data.gov.uk/doc/local-authority/30UN,Scrutiny,Consultancy Fees,4541,AS ABOVE,18/03/2016,0000406436,740.00,Revenue,CIPFA,00017187
South Ribble Council,http://statistics.data.gov.uk/doc/local-authority/30UN,Shared Financial Services,Peripherals,4248,Civica Financials Licence Support and Maintenance for the period 1 April 2016 to 31 March 2017,02/03/2016,0000401257,"15,131.95",Revenue,CIVICA UK LTD,00102717
South Ribble Council,http://statistics.data.gov.uk/doc/local-authority/30UN,Revenues Plus,Advertising,4841,ATP Voice files upload,31/03/2016,0000407301,550.00,Revenue,CIVICA UK LTD,00102717
South Ribble Council,http://statistics.data.gov.uk/doc/local-authority/30UN,HR & Communications,Advertising,4848,PHOTOGRAPHY FOR FORWARD - SPRING EDITION 2016,16/03/2016,0000407141,260.00,Revenue,CLIVE LAWRENCE PHOTOGRAPHY,00122166
South Ribble Council,http://statistics.data.gov.uk/doc/local-authority/30UN,HR & Communications,Balance Sheet,0030,CHILDCARE VOUCHERS NOVEMBER 2015,02/03/2016,0000389420,"2,908.02",Revenue,COMPUTERSHARE VOUCHER SERVICES,00116499
South Ribble Council,http://statistics.data.gov.uk/doc/local-authority/30UN,HR & Communications,Balance Sheet,0030,CHILDCARE VOUCHERS JANUARY 2016,02/03/2016,0000394358,"2,789.02",Revenue,COMPUTERSHARE VOUCHER SERVICES,00116499
South Ribble Council,http://statistics.data.gov.uk/doc/local-authority/30UN,HR & Communications,Balance Sheet,0030,CHILDCARE VOUCHERS FEBRUARY 2016,02/03/2016,0000400826,"2,789.02",Revenue,COMPUTERSHARE VOUCHER SERVICES,00116499
South Ribble Council,http://statistics.data.gov.uk/doc/local-authority/30UN,HR & Communications,Balance Sheet,0030,CHILDCARE VOUCHERS MARCH 2016,30/03/2016,0000407145,"2,566.02",Revenue,COMPUTERSHARE VOUCHER SERVICES,00116499
South Ribble Council,http://statistics.data.gov.uk/doc/local-authority/30UN,Area 2 - Waste Transport/Eastern & Central Teams,External Contractors Charges,4570,Refurbishment of 20no trade waste containers @ 75 per bin,02/03/2016,0000401541,"1,500.00",Revenue,CONTAINER CARE SOLUTIONS,00106742
South Ribble Council,http://statistics.data.gov.uk/doc/local-authority/30UN,Property Services,Rep & Maint Premises,2020,Supply labour and materials at site the Civic Centre - remove the doors leading into the Civic Suite. ,02/03/2016,0000401549,420.75,Revenue,COOPER BESPOKE JOINERY LTD,00104456
South Ribble Council,http://statistics.data.gov.uk/doc/local-authority/30UN,Property Services,Rep & Maint Premises,2020,MATERIALS,02/03/2016,0000401549,"1,859.25",Revenue,COOPER BESPOKE JOINERY LTD,00104456
South Ribble Council,http://statistics.data.gov.uk/doc/local-authority/30UN,Property Services,Rep & Maint Premises,2020,"Attend craft units 3/4 worden park, supply all labour & equipment, supply supports props and install",18/03/2016,0000407184,379.50,Revenue,COOPER BESPOKE JOINERY LTD,00104456
South Ribble Council,http://statistics.data.gov.uk/doc/local-authority/30UN,Property Services,Rep & Maint Premises,2020,Please attend Moss Side depot and make repairs to the boiler house door push bar.  ,18/03/2016,0000407184,49.50,Revenue,COOPER BESPOKE JOINERY LTD,00104456
South Ribble Council,http://statistics.data.gov.uk/doc/local-authority/30UN,Property Services,Rep & Maint Premises,2020,line 1 materials,18/03/2016,0000407184,67.00,Revenue,COOPER BESPOKE JOINERY LTD,00104456
South Ribble Council,http://statistics.data.gov.uk/doc/local-authority/30UN,Property Services,Rep & Maint Premises,2020,line 2 materials,18/03/2016,0000407184,17.00,Revenue,COOPER BESPOKE JOINERY LTD,00104456
South Ribble Council,http://statistics.data.gov.uk/doc/local-authority/30UN,Property Services,Rep & Maint Premises,2020,Supply and install a new laminate floor to the office in ADDRESS REDACTED,24/03/2016,0000407185,321.00,Revenue,COOPER BESPOKE JOINERY LTD,00104456
South Ribble Council,http://statistics.data.gov.uk/doc/local-authority/30UN,Property Services,Rep & Maint Premises,2020,materials,24/03/2016,0000407185,297.00,Revenue,COOPER BESPOKE JOINERY LTD,00104456
South Ribble Council,http://statistics.data.gov.uk/doc/local-authority/30UN,Property Services,Rep & Maint Premises,2020,Carry out work per tender specification for Construction of a new market office new joist and fire boarding,31/03/2016,0000412392,"2,673.00",Revenue,COOPER BESPOKE JOINERY LTD,00104456
South Ribble Council,http://statistics.data.gov.uk/doc/local-authority/30UN,Property Services,Rep & Maint Premises,2020,materials,31/03/2016,0000412392,"7,309.00",Revenue,COOPER BESPOKE JOINERY LTD,00104456
South Ribble Council,http://statistics.data.gov.uk/doc/local-authority/30UN,Property Services,Rep & Maint Premises,2025,Carry out the work (flood damage) to make good to the dance floor at Bamber Bridge Leisure Centre,31/03/2016,0000412394,701.25,Revenue,COOPER BESPOKE JOINERY LTD,00104456
South Ribble Council,http://statistics.data.gov.uk/doc/local-authority/30UN,Property Services,Rep & Maint Premises,2025,materials,31/03/2016,0000412394,"2,664.75",Revenue,COOPER BESPOKE JOINERY LTD,00104456
South Ribble Council,http://statistics.data.gov.uk/doc/local-authority/30UN,Information Services,Training Expense-Course Fees,1420,"Holiday Inn, Preston on 30/03/15.  Delegates - NAMES REDACTED",31/03/2016,0000407650,390.00,Revenue,CPL Training,131924
South Ribble Council,http://statistics.data.gov.uk/doc/local-authority/30UN,Revenues Plus,Stationery,4130,Envelopes,18/03/2016,0000401210,793.00,Revenue,CRITIQOM,131053
South Ribble Council,http://statistics.data.gov.uk/doc/local-authority/30UN,Housing,Cap Grant- Improve Grants,C570,DFG WORKS TO BATHROOM AT ADDRESS REDACTED COST 3550.00,11/03/2016,0000406825,"3,550.00",Revenue,Croston Plumbing & Heating Ltd,131545
South Ribble Council,http://statistics.data.gov.uk/doc/local-authority/30UN,Property Services,Rep & Maint Premises,2020,2015 / 2016 chiller maintenance contract  for the civic centre,18/03/2016,0000407148,482.97,Revenue,DAIKIN APPLIED SERVICE,130324
South Ribble Council,http://statistics.data.gov.uk/doc/local-authority/30UN,Information Services,Peripherals,4245,Annual Disaster Recovery Services 1/4/16 to 31/3/17,04/03/2016,0000395705,"2,430.10",Revenue,DAISY IT CONTINUITY and RESILIENCE SERVICES LTD,131708
South Ribble Council,http://statistics.data.gov.uk/doc/local-authority/30UN,Area 2 - Waste Transport/Eastern & Central Teams,External Contractors Charges,4570,excess,24/03/2016,0000407227,250.00,Revenue,DAVAND LTD (trading as Longton Coachcraft),131579
South Ribble Council,http://statistics.data.gov.uk/doc/local-authority/30UN,Area 2 - Waste Transport/Eastern & Central Teams,External Contractors Charges,4570,vat only,24/03/2016,0000407227,0.00,Revenue,DAVAND LTD (trading as Longton Coachcraft),131579
South Ribble Council,http://statistics.data.gov.uk/doc/local-authority/30UN,Area 2 - Waste Transport/Eastern & Central Teams,External Contractors Charges,4570,1 SPEC REPAIR VN10 DKL JFC6451,31/03/2016,0000412379,"1,170.86",Revenue,DENNIS EAGLE LTD,00019774
South Ribble Council,http://statistics.data.gov.uk/doc/local-authority/30UN,Area 2 - Waste Transport/Eastern & Central Teams,Materials General,4040,"1 HUB KIT, 1 BRACKET KIT, 2 TENSIONERS - VN10 DKL - JFC6356 - GA",31/03/2016,0000412380,"1,267.75",Revenue,DENNIS EAGLE LTD,00019774
South Ribble Council,http://statistics.data.gov.uk/doc/local-authority/30UN,Property Services,Rep & Maint Premises,2020,"Supply materials and labour carry out work, disconnect the associated illuminated fire signs re-position.",09/03/2016,0000406624,465.87,Revenue,DES Electrical Services Ltd,131437
South Ribble Council,http://statistics.data.gov.uk/doc/local-authority/30UN,Area 2 - Waste Transport/Eastern & Central Teams,Clothing- Uniforms & Laundry,4410,"1 PAIR SIZE 7 BOOTS, 1 CLIMBING HELMET AND CLIMBING TROUSERS - SIZE SMALL",04/03/2016,0000406546,159.38,Revenue,DICK LEIGH,00026534
South Ribble Council,http://statistics.data.gov.uk/doc/local-authority/30UN,Area 2 - Waste Transport/Eastern & Central Teams,Clothing- Uniforms & Laundry,4410,"boot, helmet",04/03/2016,0000406546,278.25,Revenue,DICK LEIGH,00026534
South Ribble Council,http://statistics.data.gov.uk/doc/local-authority/30UN,Information Services,Peripherals,4248,To 14/03/17 FME Professional Fixed Maintenance,24/03/2016,0000407581,340.00,Revenue,Dotted Eyes Ltd,131106
South Ribble Council,http://statistics.data.gov.uk/doc/local-authority/30UN,Information Services,Peripherals,4248,Lite Support,24/03/2016,0000407581,99.00,Revenue,Dotted Eyes Ltd,131106
South Ribble Council,http://statistics.data.gov.uk/doc/local-authority/30UN,Regeneration,Capital Expenditure,C234,Bamber Bridge design fee�s,04/03/2016,0000406351,"3,000.00",Revenue,DP STRUCTURES LTD,00120485
South Ribble Council,http://statistics.data.gov.uk/doc/local-authority/30UN,Regeneration,Capital Expenditure,C234,"Creation of Arch, Hire of equipment and concrete, out riggers and steel posts. Dig Foundations rebuild",24/03/2016,0000407609,"13,300.00",Revenue,DP STRUCTURES LTD,00120485
South Ribble Council,http://statistics.data.gov.uk/doc/local-authority/30UN,Regeneration,Capital Expenditure,C234,"Manufacture, supply and delivery of steel footbridge",31/03/2016,0000412357,"20,000.00",Revenue,DP STRUCTURES LTD,00120485
South Ribble Council,http://statistics.data.gov.uk/doc/local-authority/30UN,Information Services,Peripherals,4260,,11/03/2016,0000406843,"2,056.66",Revenue,EE Ltd,131653
South Ribble Council,http://statistics.data.gov.uk/doc/local-authority/30UN,Area 2 - Waste Transport/Eastern & Central Teams,Cap Vehicles,C440,200 x 360ltr CONTAINER (std GREY 030 WITH ORANGE 060 LID),31/03/2016,0000407608,"6,134.00",Revenue,ESE WORLD LTD,130042
South Ribble Council,http://statistics.data.gov.uk/doc/local-authority/30UN,Information Services,Publications,4142,Estates Gazette subscription renewal Feb 2016 to Feb 2017,04/03/2016,0000406557,260.00,Revenue,ESTATES GAZETTE SUBSCRIPTIONS,00021319
South Ribble Council,http://statistics.data.gov.uk/doc/local-authority/30UN,Information Services,Peripherals,4247,"16GB PC3L-12800R 2Rx4 ECC 20D6F (New, Sealed, Dell labelled)",31/03/2016,0000407607,"1,200.00",Revenue,ETB TECHNOLOGIES LTD,130192
South Ribble Council,http://statistics.data.gov.uk/doc/local-authority/30UN,Information Services,Peripherals,4247,Delivery,31/03/2016,0000407607,10.00,Revenue,ETB TECHNOLOGIES LTD,130192
South Ribble Council,http://statistics.data.gov.uk/doc/local-authority/30UN,Area 2 - Waste Transport/Eastern & Central Teams,Cap Vehicles,C440,PURCHASE OF 3500kg - MWB chassis cab,11/03/2016,0000406599,"15,452.00",Revenue,EVANSHALSHAW (PRESTON) LTD,00021076
South Ribble Council,http://statistics.data.gov.uk/doc/local-authority/30UN,Area 2 - Waste Transport/Eastern & Central Teams,Cap Vehicles,C440,TIPPER BODY - as per specification,11/03/2016,0000406599,"9,880.00",Revenue,EVANSHALSHAW (PRESTON) LTD,00021076
South Ribble Council,http://statistics.data.gov.uk/doc/local-authority/30UN,Area 2 - Waste Transport/Eastern & Central Teams,Cap Vehicles,C440,ROAD FUND LICENCE,11/03/2016,0000406599,225.00,Revenue,EVANSHALSHAW (PRESTON) LTD,00021076
South Ribble Council,http://statistics.data.gov.uk/doc/local-authority/30UN,Area 2 - Waste Transport/Eastern & Central Teams,Cap Vehicles,C440,FIRST REGISTRATION FEE,11/03/2016,0000406599,55.00,Revenue,EVANSHALSHAW (PRESTON) LTD,00021076
South Ribble Council,http://statistics.data.gov.uk/doc/local-authority/30UN,Area 2 - Waste Transport/Eastern & Central Teams,Cap Vehicles,C440,delivery,11/03/2016,0000406599,530.00,Revenue,EVANSHALSHAW (PRESTON) LTD,00021076
South Ribble Council,http://statistics.data.gov.uk/doc/local-authority/30UN,Area 2 - Waste Transport/Eastern & Central Teams,Materials General,4040,"1 DOOR LOCK & BARREL, 12 DOOR CLIPS, 1 SPRING CLIP PE07 HXT JFC6426",24/03/2016,0000406862,289.80,Revenue,EVANSHALSHAW (PRESTON) LTD,00021076
South Ribble Council,http://statistics.data.gov.uk/doc/local-authority/30UN,Healthy Communities,Other Misc,4851,Videoing of routine and duplication of training DVDs x 40,24/03/2016,0000407592,370.00,Revenue,Everyonemedia Ltd,131539
South Ribble Council,http://statistics.data.gov.uk/doc/local-authority/30UN,Revenues Plus,Professional Fees,4520,1 Annual Charge and Licence Fee,18/03/2016,0000406642,"1,600.00",Revenue,EXPERIAN LTD,00094045
South Ribble Council,http://statistics.data.gov.uk/doc/local-authority/30UN,Area 2 - Waste Transport/Eastern & Central Teams,Cap Vehicles,C440,PURCHASE OF 6 NO. RANSOMES PORTWAY 3 METEOR TURBO DRIVE ON CYLINDER MOWERS,11/03/2016,0000401195,"159,864.00",Revenue,F R SHARROCK LTD,00034539
South Ribble Council,http://statistics.data.gov.uk/doc/local-authority/30UN,Area 2 - Waste Transport/Eastern & Central Teams,Cap Vehicles,C440,non tax item,11/03/2016,0000401195,330.00,Revenue,F R SHARROCK LTD,00034539
South Ribble Council,http://statistics.data.gov.uk/doc/local-authority/30UN,Area 2 - Waste Transport/Eastern & Central Teams,Materials General,4040,"4 head bushes, 8 arm bushes, 1 collar, 6 ram pins, 5 motor seals, 1 rear arm, 4 bottom pins, 8 shims ",04/03/2016,0000406456,967.27,Revenue,F R SHARROCK LTD,00034539
South Ribble Council,http://statistics.data.gov.uk/doc/local-authority/30UN,Area 2 - Waste Transport/Eastern & Central Teams,Balance Sheet,0030,CLAIM BACK JUNE - DECEMBER 2015..DEDUCTED FROM JANUARY INVOICE SI1092 IN ERROR,16/03/2016,0000407156,"40,459.63",Revenue,FCC Environment Services (UK) Ltd,131612
South Ribble Council,http://statistics.data.gov.uk/doc/local-authority/30UN,Area 2 - Waste Transport/Eastern & Central Teams,Balance Sheet,0030,RETENTION CLAIM BACK JUNE - DECEMBER 2015 - REFUSE COLLECTIONS,16/03/2016,0000407156,"17,447.40",Revenue,FCC Environment Services (UK) Ltd,131612
South Ribble Council,http://statistics.data.gov.uk/doc/local-authority/30UN,Area 2 - Waste Transport/Eastern & Central Teams,Balance Sheet,0030,RETENTION CLAIM BACK JUNE - DECEMBER 2015 - RECYCLING COLLECTIONS,16/03/2016,0000407156,"23,012.23",Revenue,FCC Environment Services (UK) Ltd,131612
South Ribble Council,http://statistics.data.gov.uk/doc/local-authority/30UN,Area 2 - Waste Transport/Eastern & Central Teams,External Contractors Charges,4570,ADDITIONAL CLINICAL WASTE COLLECTIONS 6.1.16 - 27.1.16,16/03/2016,0000407173,475.49,Revenue,FCC Environment Services (UK) Ltd,131612
South Ribble Council,http://statistics.data.gov.uk/doc/local-authority/30UN,Area 2 - Waste Transport/Eastern & Central Teams,External Contractors Charges,4570,Residual Waste - FEBRUARY 2016,16/03/2016,0000407174,"36,527.87",Revenue,FCC Environment Services (UK) Ltd,131612
South Ribble Council,http://statistics.data.gov.uk/doc/local-authority/30UN,Area 2 - Waste Transport/Eastern & Central Teams,External Contractors Charges,4570,Dry Recycling (Non Terraced) FEBRUARY 2016,16/03/2016,0000407174,"37,441.36",Revenue,FCC Environment Services (UK) Ltd,131612
South Ribble Council,http://statistics.data.gov.uk/doc/local-authority/30UN,Area 2 - Waste Transport/Eastern & Central Teams,External Contractors Charges,4570,Dry Recycled (Terraced) FEBRUARY 2016,16/03/2016,0000407174,"1,846.94",Revenue,FCC Environment Services (UK) Ltd,131612
South Ribble Council,http://statistics.data.gov.uk/doc/local-authority/30UN,Area 2 - Waste Transport/Eastern & Central Teams,External Contractors Charges,4570,Organic Waste (Non Terraced) FEBRUARY 2016,16/03/2016,0000407174,"25,506.25",Revenue,FCC Environment Services (UK) Ltd,131612
South Ribble Council,http://statistics.data.gov.uk/doc/local-authority/30UN,Area 2 - Waste Transport/Eastern & Central Teams,External Contractors Charges,4570,Organic Waste (Terraced) FEBRUARY 2016,16/03/2016,0000407174,"5,384.11",Revenue,FCC Environment Services (UK) Ltd,131612
South Ribble Council,http://statistics.data.gov.uk/doc/local-authority/30UN,Area 2 - Waste Transport/Eastern & Central Teams,External Contractors Charges,4570,Schedule 2 Properties FEBRUARY 2016,16/03/2016,0000407174,"1,542.35",Revenue,FCC Environment Services (UK) Ltd,131612
South Ribble Council,http://statistics.data.gov.uk/doc/local-authority/30UN,Area 2 - Waste Transport/Eastern & Central Teams,External Contractors Charges,4570,Commercial Waste FEBRUARY 2016,16/03/2016,0000407174,"6,039.84",Revenue,FCC Environment Services (UK) Ltd,131612
South Ribble Council,http://statistics.data.gov.uk/doc/local-authority/30UN,Area 2 - Waste Transport/Eastern & Central Teams,External Contractors Charges,4570,Bulky Waste FEBRUARY 2016,16/03/2016,0000407174,835.17,Revenue,FCC Environment Services (UK) Ltd,131612
South Ribble Council,http://statistics.data.gov.uk/doc/local-authority/30UN,Area 2 - Waste Transport/Eastern & Central Teams,External Contractors Charges,4570,WEEE Collections FEBRUARY 2016,16/03/2016,0000407174,312.37,Revenue,FCC Environment Services (UK) Ltd,131612
South Ribble Council,http://statistics.data.gov.uk/doc/local-authority/30UN,Area 2 - Waste Transport/Eastern & Central Teams,External Contractors Charges,4570,Clinical Waste FEBRUARY 2016,16/03/2016,0000407174,531.97,Revenue,FCC Environment Services (UK) Ltd,131612
South Ribble Council,http://statistics.data.gov.uk/doc/local-authority/30UN,Area 2 - Waste Transport/Eastern & Central Teams,External Contractors Charges,4570,Replacement Bins FEBRUARY 2016,16/03/2016,0000407174,"5,000.00",Revenue,FCC Environment Services (UK) Ltd,131612
South Ribble Council,http://statistics.data.gov.uk/doc/local-authority/30UN,Area 2 - Waste Transport/Eastern & Central Teams,Balance Sheet,0030,retention,16/03/2016,0000407174,"-2,289.48",Revenue,FCC Environment Services (UK) Ltd,131612
South Ribble Council,http://statistics.data.gov.uk/doc/local-authority/30UN,Area 2 - Waste Transport/Eastern & Central Teams,Balance Sheet,0030,retention,16/03/2016,0000407174,"-3,508.93",Revenue,FCC Environment Services (UK) Ltd,131612
South Ribble Council,http://statistics.data.gov.uk/doc/local-authority/30UN,Area 3 - Parks/Leyland East West,Grounds Maint Cntrctrs Chgs,4657,"x770 Brown Hollow Palisade Fencing (Interlocking) 600mm Long, 100mm Diameter @ 3.85",24/03/2016,0000407213,"2,964.50",Revenue,FILCRIS LTD,130545
South Ribble Council,http://statistics.data.gov.uk/doc/local-authority/30UN,Area 3 - Parks/Leyland East West,Grounds Maint Cntrctrs Chgs,4657,Delivery,24/03/2016,0000407213,210.00,Revenue,FILCRIS LTD,130545
South Ribble Council,http://statistics.data.gov.uk/doc/local-authority/30UN,Regeneration,Other Misc,4851,Way marking disc for walks,24/03/2016,0000407214,317.50,Revenue,Fitzpatrick Woolmer,131859
South Ribble Council,http://statistics.data.gov.uk/doc/local-authority/30UN,Area 2 - Waste Transport/Eastern & Central Teams,External Contractors Charges,4570,EXTRACTOR INSPECTIONS - PD,24/03/2016,0000407172,270.00,Revenue,FUMEXLTD,131067
South Ribble Council,http://statistics.data.gov.uk/doc/local-authority/30UN,Customer Contact,Other Misc,4851,Customer Service Excellence- Assessment no. 127613 For works and site visit of Nigel Hunt February ,11/03/2016,0000406631,905.00,Revenue,G4S SSESSMENT SERVICES,131081
South Ribble Council,http://statistics.data.gov.uk/doc/local-authority/30UN,Homelessness,Contributions,4730,rent in advance for NAME REDACTED in relation to tenancy ADDRESS REDACTED,31/03/2016,0000406586,380.00,Revenue,GAPP DEVELOPMENTS,130563
South Ribble Council,http://statistics.data.gov.uk/doc/local-authority/30UN,Neighbourhood Admin & Support,Materials General,4040,BLACK SACKS,04/03/2016,0000401599,"2,494.70",Revenue,GELPACK EXCELSIOR LTD,00022415
South Ribble Council,http://statistics.data.gov.uk/doc/local-authority/30UN,Housing,Contributions,4730,Repairs and replacements for Winter Warmth Scheme,31/03/2016,0000407518,770.30,Revenue,GOS Heating Ltd,131387
South Ribble Council,http://statistics.data.gov.uk/doc/local-authority/30UN,Housing,Contributions,4730,Gas Servicing for Winter Wamth Scheme,24/03/2016,0000407519,"2,010.00",Revenue,GOS Heating Ltd,131387
South Ribble Council,http://statistics.data.gov.uk/doc/local-authority/30UN,Housing,Contributions,4730,Repairs and replacements for Winter Warmth Scheme,31/03/2016,0000407633,"2,116.22",Revenue,GOS Heating Ltd,131387
South Ribble Council,http://statistics.data.gov.uk/doc/local-authority/30UN,Housing,Contributions,4730,Gas Servicing for Winter Wamth Scheme,31/03/2016,0000407634,585.00,Revenue,GOS Heating Ltd,131387
South Ribble Council,http://statistics.data.gov.uk/doc/local-authority/30UN,Housing,Contributions,4730,Gas Servicing for Winter Wamth Scheme,31/03/2016,0000407635,"1,980.00",Revenue,GOS Heating Ltd,131387
South Ribble Council,http://statistics.data.gov.uk/doc/local-authority/30UN,HR & Communications,Professional Fees,4513,PLEASE BOOK ONE PLACE ONTO THE BUILDING QUALITY/AFFORDABLE,24/03/2016,0000407574,385.00,Revenue,GOVNET COMMUNICATIONS,131915
South Ribble Council,http://statistics.data.gov.uk/doc/local-authority/30UN,Property Services,Capital Expenditure,C230,Provision of Professional services to South Ribble Borough Council described in report 28th April 14,09/03/2016,0000406627,"2,000.00",Revenue,GRAHAM SCHOFIELD ASSOCIATES,00035334
South Ribble Council,http://statistics.data.gov.uk/doc/local-authority/30UN,Shared Financial Services,Professional Fees,4512,Fee for the 2015/16 planned audit,24/03/2016,0000407290,"10,980.75",Revenue,Grant Thornton UK LLP,130718
South Ribble Council,http://statistics.data.gov.uk/doc/local-authority/30UN,HR & Communications,Training Expense-Course Fees,1405,LEADERSHIP REVIEW,18/03/2016,0000407216,"1,158.50",Revenue,Greengage Consulting Limited,131402
South Ribble Council,http://statistics.data.gov.uk/doc/local-authority/30UN,HR & Communications,Training Expense-Course Fees,1405,LEADERSHIP REVIEW,18/03/2016,0000407217,550.00,Revenue,Greengage Consulting Limited,131402
South Ribble Council,http://statistics.data.gov.uk/doc/local-authority/30UN,HR & Communications,Training Expense-Course Fees,1405,LEADERSHIP REVIEW,18/03/2016,0000407218,"2,258.50",Revenue,Greengage Consulting Limited,131402
South Ribble Council,http://statistics.data.gov.uk/doc/local-authority/30UN,Neighbourhood Admin & Support,Clothing- Uniforms & Laundry,4410,FLEX GRIP GLOVES - SIZE 8 (LADIES) -5T59L,16/03/2016,0000401263,36.00,Revenue,GUARDSMAN LTD,130321
South Ribble Council,http://statistics.data.gov.uk/doc/local-authority/30UN,Neighbourhood Admin & Support,Clothing- Uniforms & Laundry,4410,WATERPROOF TROUSERS - YELLOW - small - HVTPU,16/03/2016,0000401263,67.50,Revenue,GUARDSMAN LTD,130321
South Ribble Council,http://statistics.data.gov.uk/doc/local-authority/30UN,Neighbourhood Admin & Support,Clothing- Uniforms & Laundry,4410,WATERPROOF TROUSERS - YELLOW - large - HVTPU,16/03/2016,0000401263,67.50,Revenue,GUARDSMAN LTD,130321
South Ribble Council,http://statistics.data.gov.uk/doc/local-authority/30UN,Neighbourhood Admin & Support,Clothing- Uniforms & Laundry,4410,WATERPROOF TROUSERS - YELLOW - extra large - HVTPU,16/03/2016,0000401263,67.50,Revenue,GUARDSMAN LTD,130321
South Ribble Council,http://statistics.data.gov.uk/doc/local-authority/30UN,Neighbourhood Admin & Support,Clothing- Uniforms & Laundry,4410,KEVLAR GLOVES - BLUE SIZE  9 - 5T59L,16/03/2016,0000401263,72.00,Revenue,GUARDSMAN LTD,130321
South Ribble Council,http://statistics.data.gov.uk/doc/local-authority/30UN,Neighbourhood Admin & Support,Clothing- Uniforms & Laundry,4410,KEVLAR GLOVES - BLUE SIZE  10 - 5T59L,16/03/2016,0000401263,72.00,Revenue,GUARDSMAN LTD,130321
South Ribble Council,http://statistics.data.gov.uk/doc/local-authority/30UN,Neighbourhood Admin & Support,Clothing- Uniforms & Laundry,4410,WINTER ORANGE GLOVE,16/03/2016,0000401263,42.24,Revenue,GUARDSMAN LTD,130321
South Ribble Council,http://statistics.data.gov.uk/doc/local-authority/30UN,Neighbourhood Admin & Support,Clothing- Uniforms & Laundry,4410,FLEX GRIP GLOVES - SIZE 8 (LADIES) - 5T59L,31/03/2016,0000406559,36.00,Revenue,GUARDSMAN LTD,130321
South Ribble Council,http://statistics.data.gov.uk/doc/local-authority/30UN,Neighbourhood Admin & Support,Clothing- Uniforms & Laundry,4410,GLOVES - BLACK LATEX THERMALPALM COATED - SIZE 9 & 10 - TNG-0,31/03/2016,0000406559,21.12,Revenue,GUARDSMAN LTD,130321
South Ribble Council,http://statistics.data.gov.uk/doc/local-authority/30UN,Neighbourhood Admin & Support,Clothing- Uniforms & Laundry,4410,KEVLAR GLOVES - BLUE SIZE  10) - 5T59L,31/03/2016,0000406559,72.00,Revenue,GUARDSMAN LTD,130321
South Ribble Council,http://statistics.data.gov.uk/doc/local-authority/30UN,Neighbourhood Admin & Support,Clothing- Uniforms & Laundry,4410,KEVLAR GLOVES - BLUE SIZE  9 ) - 5T59L,31/03/2016,0000406559,72.00,Revenue,GUARDSMAN LTD,130321
South Ribble Council,http://statistics.data.gov.uk/doc/local-authority/30UN,Neighbourhood Admin & Support,Clothing- Uniforms & Laundry,4410,WATERPROOF TROUSERS - YELLOW - small - HVTPU,31/03/2016,0000406559,67.50,Revenue,GUARDSMAN LTD,130321
South Ribble Council,http://statistics.data.gov.uk/doc/local-authority/30UN,Neighbourhood Admin & Support,Clothing- Uniforms & Laundry,4410,WATERPROOF TROUSERS - YELLOW - large - HVTPU,31/03/2016,0000406559,67.50,Revenue,GUARDSMAN LTD,130321
South Ribble Council,http://statistics.data.gov.uk/doc/local-authority/30UN,Neighbourhood Admin & Support,Clothing- Uniforms & Laundry,4410,WATERPROOF TROUSERS - YELLOW - extra large - HVTPU,31/03/2016,0000406559,67.50,Revenue,GUARDSMAN LTD,130321
South Ribble Council,http://statistics.data.gov.uk/doc/local-authority/30UN,Neighbourhood Admin & Support,Clothing- Uniforms & Laundry,4410,GLOVES - BLACK LATEX THERMALPALM COATED - SIZE 9 & 10 - TNG-0,31/03/2016,0000406559,21.12,Revenue,GUARDSMAN LTD,130321
South Ribble Council,http://statistics.data.gov.uk/doc/local-authority/30UN,Neighbourhood Admin & Support,Clothing- Uniforms & Laundry,4410,Regatta Benson 3 in 1 Jacket - Navy with SRBC logo on fleece and Jacket (Size Small) SRC.TRA122,09/03/2016,0000406643,125.85,Revenue,GUARDSMAN LTD,130321
South Ribble Council,http://statistics.data.gov.uk/doc/local-authority/30UN,Neighbourhood Admin & Support,Clothing- Uniforms & Laundry,4410,Benson 3 in 1 Jacket - Navy with SRBC logo on fleece and Jacket (Size Medium) SRC.TRA122,09/03/2016,0000406643,209.75,Revenue,GUARDSMAN LTD,130321
South Ribble Council,http://statistics.data.gov.uk/doc/local-authority/30UN,Neighbourhood Admin & Support,Clothing- Uniforms & Laundry,4410,Regatta Benson 3 in 1 Jacket - Navy with SRBC logo on fleece and Jacket (Size Large) SRC.TRA122,09/03/2016,0000406643,209.75,Revenue,GUARDSMAN LTD,130321
South Ribble Council,http://statistics.data.gov.uk/doc/local-authority/30UN,Neighbourhood Admin & Support,Clothing- Uniforms & Laundry,4410,Benson 3 in 1 Jacket - Navy with SRBC logo on fleece and Jacket (Size Ex Large) SRC.TRA122,09/03/2016,0000406643,209.75,Revenue,GUARDSMAN LTD,130321
South Ribble Council,http://statistics.data.gov.uk/doc/local-authority/30UN,Area 2 - Waste Transport/Eastern & Central Teams,Materials General,4040,4 SETS BRAKE PADS - BIN 539 - AW,02/03/2016,0000401560,340.00,Revenue,H & J SERVICES LTD,00114446
South Ribble Council,http://statistics.data.gov.uk/doc/local-authority/30UN,Area 2 - Waste Transport/Eastern & Central Teams,Materials General,4040,ASSORTED FILTERS (IMPREST STOCK),09/03/2016,0000406601,449.45,Revenue,H & J SERVICES LTD,00114446
South Ribble Council,http://statistics.data.gov.uk/doc/local-authority/30UN,Area 2 - Waste Transport/Eastern & Central Teams,Materials General,4040,1 SWITCH - BIN 369 - GA,24/03/2016,0000407267,270.09,Revenue,H & J SERVICES LTD,00114446
South Ribble Council,http://statistics.data.gov.uk/doc/local-authority/30UN,Area 2 - Waste Transport/Eastern & Central Teams,Materials General,4040,1 SWITCH BIN 376,24/03/2016,0000407268,307.26,Revenue,H & J SERVICES LTD,00114446
South Ribble Council,http://statistics.data.gov.uk/doc/local-authority/30UN,Area 2 - Waste Transport/Eastern & Central Teams,Materials General,4040,VARIOUS FILTERS,31/03/2016,0000412337,399.51,Revenue,H & J SERVICES LTD,00114446
South Ribble Council,http://statistics.data.gov.uk/doc/local-authority/30UN,Area 2 - Waste Transport/Eastern & Central Teams,Materials General,4040,VARIOUS FILTERS,31/03/2016,0000412338,296.37,Revenue,H & J SERVICES LTD,00114446
South Ribble Council,http://statistics.data.gov.uk/doc/local-authority/30UN,Area 2 - Waste Transport/Eastern & Central Teams,Materials General,4040,"1 valve, MX04YNL, JFC6346",31/03/2016,0000412339,290.00,Revenue,H & J SERVICES LTD,00114446
South Ribble Council,http://statistics.data.gov.uk/doc/local-authority/30UN,Planning,Publications,4140,To renew South Ribble Borough Council`s Planning Subscription for 5 users and 5 magazines at 70.00,31/03/2016,0000407617,350.00,Revenue,HAYMARKET MEDIA GROUP LTD,00023346
South Ribble Council,http://statistics.data.gov.uk/doc/local-authority/30UN,HR & Communications,Advertising,4848,YELL ADVERTISING FOR 2015/2016,31/03/2016,0000407568,608.15,Revenue,HIBU Re:YELL LTD,00056177
South Ribble Council,http://statistics.data.gov.uk/doc/local-authority/30UN,Property Services,Rep & Maint Premises,2020,Supply & fit carpet tiles to the office at unit 228 Brierley Road PR5 8AL as per quotation ref G5079.,31/03/2016,0000412453,574.00,Revenue,HYDE FLOORING CO LTD,00023605
South Ribble Council,http://statistics.data.gov.uk/doc/local-authority/30UN,HR & Communications,Training Expense-Course Fees,1406,"BOOK ONE PLACE FOR CLLR BENNETT ONTO THE LEADERSHIP PROGRAMME OVER JAN, FEB",31/03/2016,0000406814,"1,000.00",Revenue,IDEA IMPROVEMENT & DEV AGENCY for LOCAL GOV,00012111
South Ribble Council,http://statistics.data.gov.uk/doc/local-authority/30UN,HR & Communications,Training Expense-Course Fees,1406,BOOK ONE PLACE FOR CLLR MOON ONTO THE LEADERSHIP PROGRAMME AT WARWICK ,24/03/2016,0000406902,"1,250.00",Revenue,IDEA IMPROVEMENT & DEV AGENCY for LOCAL GOV,00012111
South Ribble Council,http://statistics.data.gov.uk/doc/local-authority/30UN,Area 2 - Waste Transport/Eastern & Central Teams,Materials General,4040,2 x 57mm White Vinyl @ 78.85,31/03/2016,0000407215,157.70,Revenue,IDENTIPRO LIMITED,130784
South Ribble Council,http://statistics.data.gov.uk/doc/local-authority/30UN,Area 2 - Waste Transport/Eastern & Central Teams,Materials General,4040,2 x Black Ribbon @ 94.96,31/03/2016,0000407215,189.92,Revenue,IDENTIPRO LIMITED,130784
South Ribble Council,http://statistics.data.gov.uk/doc/local-authority/30UN,Area 2 - Waste Transport/Eastern & Central Teams,Materials General,4040,Carriage,31/03/2016,0000407215,9.95,Revenue,IDENTIPRO LIMITED,130784
South Ribble Council,http://statistics.data.gov.uk/doc/local-authority/30UN,Information Services,Peripherals,4248,Lalpac annual maintenance for period 23/01/16 - 22/01/17,04/03/2016,0000400890,"10,862.21",Revenue,IDOX PLC,00104485
South Ribble Council,http://statistics.data.gov.uk/doc/local-authority/30UN,Information Services,Capital Expenditure,C234,,04/03/2016,0000400898,"5,000.00",Revenue,IDOX PLC,00104485
South Ribble Council,http://statistics.data.gov.uk/doc/local-authority/30UN,Information Services,Peripherals,4248,Uniform ORB-it Service Agreement for period 01/04/16 - 31/03/17,24/03/2016,0000407283,"53,974.69",Revenue,IDOX PLC,00104485
South Ribble Council,http://statistics.data.gov.uk/doc/local-authority/30UN,Information Services,Capital Expenditure,C234,Quote ref :  South Ribble Upgrades 260216,31/03/2016,0000407542,"7,822.50",Revenue,IDOX PLC,00104485
South Ribble Council,http://statistics.data.gov.uk/doc/local-authority/30UN,Revenues Plus,Professional Fees,4510,Analyse Local/Inform RV finder for 211 Walton Summit Road - invoice number AL50813,09/03/2016,0000406628,700.00,Revenue,Inform CPI Ltd,131666
South Ribble Council,http://statistics.data.gov.uk/doc/local-authority/30UN,Property Services,Waste Disposal Charges,5112,2016 / 2017 annual contract for the nappy disposal unit at Leyland Market,31/03/2016,0000407559,364.85,Revenue,INITIAL WASHROOM SOLUTIONS,00024811
South Ribble Council,http://statistics.data.gov.uk/doc/local-authority/30UN,Property Services,Cleaning and Domestic Supplies,2710,2016 / 2017 annual contract for the floor mats at Leyland Market,31/03/2016,0000407559,839.20,Revenue,INITIAL WASHROOM SOLUTIONS,00024811
South Ribble Council,http://statistics.data.gov.uk/doc/local-authority/30UN,Property Services,Cleaning and Domestic Supplies,2710,transfer charge,31/03/2016,0000407559,39.00,Revenue,INITIAL WASHROOM SOLUTIONS,00024811
South Ribble Council,http://statistics.data.gov.uk/doc/local-authority/30UN,Information Services,Peripherals,4247,R630 PowerEdge R630 Server as per your quote,24/03/2016,0000407560,"5,043.00",Revenue,INSIGHT UK,00120744
South Ribble Council,http://statistics.data.gov.uk/doc/local-authority/30UN,Information Services,Peripherals,4244,Cisco cover for MD49460 for period 01/03/16 - 28/02/17,04/03/2016,0000401203,"3,997.32",Revenue,INTRINSIC TECHNOLOGY LTD,130439
South Ribble Council,http://statistics.data.gov.uk/doc/local-authority/30UN,Information Services,Peripherals,4244,"Out of Hours Consultancy with 1 onsite engineer and 1 remote engineer, as per quote no. SQ003229",09/03/2016,0000406584,"1,425.00",Revenue,INTRINSIC TECHNOLOGY LTD,130439
South Ribble Council,http://statistics.data.gov.uk/doc/local-authority/30UN,Revenues Plus,Professional Fees,4525,Q4 Bailiffs fees - C Tax,11/03/2016,0000406860,310.00,Revenue,JACOBS,00049252
South Ribble Council,http://statistics.data.gov.uk/doc/local-authority/30UN,Revenues Plus,Professional Fees,4525,vat on fees,11/03/2016,0000406860,0.00,Revenue,JACOBS,00049252
South Ribble Council,http://statistics.data.gov.uk/doc/local-authority/30UN,HR & Communications,Training Expense-Course Fees,1406,DELIVERY OF EQUALITY AND DIVERSITY TRAINING FOR COUNCILLORS,18/03/2016,0000407181,260.00,Revenue,JANE BARKER,131593
South Ribble Council,http://statistics.data.gov.uk/doc/local-authority/30UN,Shared Assurance Services,Professional Fees,4510,BROKER FEE,02/03/2016,0000401246,"5,000.00",Revenue,JLT Speciality ltd,00121125
South Ribble Council,http://statistics.data.gov.uk/doc/local-authority/30UN,Shared Assurance Services,Employee Related Insurance,1800,,02/03/2016,0000401247,835.30,Revenue,JLT Speciality ltd,00121125
South Ribble Council,http://statistics.data.gov.uk/doc/local-authority/30UN,Shared Assurance Services,Employee Related Insurance,1800,,02/03/2016,0000401248,"71,159.14",Revenue,JLT Speciality ltd,00121125
South Ribble Council,http://statistics.data.gov.uk/doc/local-authority/30UN,Shared Assurance Services,Employee Related Insurance,1800,comp & terrorism,02/03/2016,0000401249,"3,375.81",Revenue,JLT Speciality ltd,00121125
South Ribble Council,http://statistics.data.gov.uk/doc/local-authority/30UN,Area 2 - Waste Transport/Eastern & Central Teams,External Contractors Charges,4570,SPEC REPAIR TO VEHICLE CLEANING PLATFORM - PD,18/03/2016,0000401602,250.00,Revenue,John Tams T/A Mobile Welding Services,131849
South Ribble Council,http://statistics.data.gov.uk/doc/local-authority/30UN,Planning,Client Dept Charges Contractin,4581,Press Notices for planning applications up to end of March 2016,02/03/2016,0000401550,498.75,Revenue,JOHNSTON PUBLISHING (NORTH WEST),00011345
South Ribble Council,http://statistics.data.gov.uk/doc/local-authority/30UN,Planning,Client Dept Charges Contractin,4581,Press Notices for planning applications up to end of March 2016,09/03/2016,0000406704,603.75,Revenue,JOHNSTON PUBLISHING (NORTH WEST),00011345
South Ribble Council,http://statistics.data.gov.uk/doc/local-authority/30UN,Planning,Client Dept Charges Contractin,4581,Press Notices for planning applications up to end of March 2016,09/03/2016,0000406705,682.50,Revenue,JOHNSTON PUBLISHING (NORTH WEST),00011345
South Ribble Council,http://statistics.data.gov.uk/doc/local-authority/30UN,Planning,Advertising,4841,Public Notices in relation to Planning applications,16/03/2016,0000406859,603.75,Revenue,JOHNSTON PUBLISHING (NORTH WEST),00011345
South Ribble Council,http://statistics.data.gov.uk/doc/local-authority/30UN,Revenues Plus,Advertising,4841,Council Tax advert 2016/17,24/03/2016,0000407575,"1,050.00",Revenue,JOHNSTON PUBLISHING (NORTH WEST),00011345
South Ribble Council,http://statistics.data.gov.uk/doc/local-authority/30UN,Planning,Advertising,4841,Public Notices in relation to Planning applications,31/03/2016,0000407576,708.75,Revenue,JOHNSTON PUBLISHING (NORTH WEST),00011345
South Ribble Council,http://statistics.data.gov.uk/doc/local-authority/30UN,Shared Financial Services,Balance Sheet,0030,refund,24/03/2016,0000407176,343.03,Revenue,Jones lighting ltdMain,131657
South Ribble Council,http://statistics.data.gov.uk/doc/local-authority/30UN,Environmental Health,Materials General,4040,"Business cards, printed one side Can be laminated X 100 @ 60.00 + VAT This includes set up, ",31/03/2016,0000400498,350.00,Revenue,JUST ADD PRINT LTD,131662
South Ribble Council,http://statistics.data.gov.uk/doc/local-authority/30UN,Area 3 - Parks/Leyland East West,Grounds Maint Cntrctrs Chgs,4657,"GREEN FLAG AWARD APPLICATIONS FOR WORDEN PARK, HURST GRANGE PARK & LONGTON",04/03/2016,0000406412,312.00,Revenue,KEEP BRITAIN TIDY,00115979
South Ribble Council,http://statistics.data.gov.uk/doc/local-authority/30UN,Area 3 - Parks/Leyland East West,Grounds Maint Cntrctrs Chgs,4657,"GREEN FLAG AWARD APPLICATIONS FOR WORDEN PARK, HURST GRANGE PARK & LONGTON",04/03/2016,0000406413,363.00,Revenue,KEEP BRITAIN TIDY,00115979
South Ribble Council,http://statistics.data.gov.uk/doc/local-authority/30UN,Area 3 - Parks/Leyland East West,Grounds Maint Cntrctrs Chgs,4657,"GREEN FLAG AWARD APPLICATIONS FOR WORDEN PARK, HURST GRANGE PARK & LONGTON",04/03/2016,0000406414,312.00,Revenue,KEEP BRITAIN TIDY,00115979
South Ribble Council,http://statistics.data.gov.uk/doc/local-authority/30UN,Area 2 - Waste Transport/Eastern & Central Teams,Materials General,4040,205L ENGINE OIL 10/30,02/03/2016,0000401587,289.12,Revenue,LANCASHIRE OILS LTD,131167
South Ribble Council,http://statistics.data.gov.uk/doc/local-authority/30UN,Area 2 - Waste Transport/Eastern & Central Teams,Materials General,4040,500L HYDRAULIC OIL,02/03/2016,0000401587,225.00,Revenue,LANCASHIRE OILS LTD,131167
South Ribble Council,http://statistics.data.gov.uk/doc/local-authority/30UN,Area 2 - Waste Transport/Eastern & Central Teams,Waste Disposal Charges,5112,November 2015 - Incineration of Clinical Waste,11/03/2016,0000395634,848.54,Revenue,LANCASHIRE TEACHING FT,00120715
South Ribble Council,http://statistics.data.gov.uk/doc/local-authority/30UN,Development Enterprise & Comm Mgnt,Capital Expenditure,C234,Contribution towards 4 planters made from recycled plastic to be installed at Bamber Bridge,04/03/2016,0000401512,300.00,Revenue,LANCS COUNTY COUNCIL,00041645
South Ribble Council,http://statistics.data.gov.uk/doc/local-authority/30UN,Legal,Other Local Authorities,4530,LAND CHARGES - NOVEMBER 2015,04/03/2016,0000401552,"1,022.00",Revenue,LANCS COUNTY COUNCIL,00041645
South Ribble Council,http://statistics.data.gov.uk/doc/local-authority/30UN,Legal,Other Local Authorities,4530,LAND CHARGES - DECEMBER 2015,04/03/2016,0000401552,896.00,Revenue,LANCS COUNTY COUNCIL,00041645
South Ribble Council,http://statistics.data.gov.uk/doc/local-authority/30UN,Area 2 - Waste Transport/Eastern & Central Teams,Contractors Charges 5,5412,"Quarter 3 Disposal Fee, Landfill tax & 5% admin fee",11/03/2016,0000406439,"53,457.64",Revenue,LANCS COUNTY COUNCIL,00041645
South Ribble Council,http://statistics.data.gov.uk/doc/local-authority/30UN,HR & Communications,Training Expense-Course Fees,1405,TRAFFIC MANGEMENT TRAINING FOR DEPOT STAFF 5.2.16,18/03/2016,0000406908,550.00,Revenue,LANCS COUNTY COUNCIL,00041645
South Ribble Council,http://statistics.data.gov.uk/doc/local-authority/30UN,HR & Communications,Training Expense-Course Fees,1405,TRAFFIC MANGEMENT TRAINING FOR DEPOT STAFF 12.2.16,18/03/2016,0000407161,550.00,Revenue,LANCS COUNTY COUNCIL,00041645
South Ribble Council,http://statistics.data.gov.uk/doc/local-authority/30UN,Housing,Cap Grant- Improve Grants,C570,Supply and install stair lift as per quote at ADDRESS REDACTED,24/03/2016,0000407532,"3,907.00",Revenue,LANCS COUNTY COUNCIL,00041645
South Ribble Council,http://statistics.data.gov.uk/doc/local-authority/30UN,Shared Assurance Services,Agency Fees,1121,Provision of Internal Services 2015-16 50 days at 260 per day,31/03/2016,0000407594,"13,000.00",Revenue,LANCS COUNTY COUNCIL,00041645
South Ribble Council,http://statistics.data.gov.uk/doc/local-authority/30UN,Area 1 - Penwortham Western Parishes,Materials General,4040,"FACE FIT TESTING @ 25.00 PER TEST (APPROX 30) 26th & 27th NOVEMBER 2015 MOSS SIDE ",31/03/2016,0000412397,625.00,Revenue,LANCS COUNTY COUNCIL,00041645
South Ribble Council,http://statistics.data.gov.uk/doc/local-authority/30UN,Regeneration,Capital Expenditure,C234,"Earthworks, pavements, kerbs footways and paved areas, preliminaries",02/03/2016,0000401444,"10,380.27",Revenue,LANDSCAPE ENGINEERING LIMITED,130416
South Ribble Council,http://statistics.data.gov.uk/doc/local-authority/30UN,Regeneration,Capital Expenditure,C234,services at St Catherines Park installation,02/03/2016,0000401530,"7,422.56",Revenue,LANDSCAPE ENGINEERING LIMITED,130416
South Ribble Council,http://statistics.data.gov.uk/doc/local-authority/30UN,Regeneration,Capital Expenditure,C234,St Catherine`s Park Installation (Second Payment),18/03/2016,0000407281,"26,614.16",Revenue,LANDSCAPE ENGINEERING LIMITED,130416
South Ribble Council,http://statistics.data.gov.uk/doc/local-authority/30UN,Legal,Publications,4142,contract renewal,31/03/2016,0000407197,"1,936.37",Revenue,LEXISNEXIS BUTTERWORTHS,00037138
South Ribble Council,http://statistics.data.gov.uk/doc/local-authority/30UN,Development Enterprise & Comm Mgnt,Capital Expenditure,C305,Community Bids Fund Grant: Accessible Toilet and works,31/03/2016,0000407511,500.00,Revenue,Leyland Society of Model Engineers,131917
South Ribble Council,http://statistics.data.gov.uk/doc/local-authority/30UN,Area 2 - Waste Transport/Eastern & Central Teams,Professional Fees,4510,DEPARTMENTAL MEMBERSHIP 1.4.16 - 31.3.17,02/03/2016,0000401551,395.00,Revenue,LOCAL AUTHORITY RECYCLING (LARAC),00027834
South Ribble Council,http://statistics.data.gov.uk/doc/local-authority/30UN,Area 3 - Parks/Leyland East West,External Contractors Charges,4570,20 TONNE GRADE 1 TOP SOIL DELIVERED TO WEIRDEN CLOSE PENWORTHAM ON 19.10.14,04/03/2016,0000406441,398.62,Revenue,M C & M A STEWART HAULAGE LTD,00035567
South Ribble Council,http://statistics.data.gov.uk/doc/local-authority/30UN,Environmental Health,Operational Furniture & Equip,4010,Inspection of Longton Riding School - ,24/03/2016,0000407303,267.25,Revenue,M J FIELDING,00005526
South Ribble Council,http://statistics.data.gov.uk/doc/local-authority/30UN,Housing,Cap Grant- Improve Grants,C570,DFG Works to bathroom as per quote at ADDRESS REDACTED,31/03/2016,0000395575,"9,803.00",Revenue,M J PARK,00087434
South Ribble Council,http://statistics.data.gov.uk/doc/local-authority/30UN,Housing,Cap Grant- Improve Grants,C570,DFG Works to bathroom as per quote,31/03/2016,0000406442,"2,700.00",Revenue,M J PARK,00087434
South Ribble Council,http://statistics.data.gov.uk/doc/local-authority/30UN,Housing,Cap Grant- Improve Grants,C570,DFG WORKS TO BATHROOM AS PER QUOTE AT COST OF WORK 3270.00,11/03/2016,0000406827,"3,270.00",Revenue,M J PARK,00087434
South Ribble Council,http://statistics.data.gov.uk/doc/local-authority/30UN,Housing,Cap Grant- Improve Grants,C570,"DFG WORKS TO DOOR AS PER QUOTE AT, WALTON-LE-DALE.",18/03/2016,0000407192,"1,050.00",Revenue,M J PARK,00087434
South Ribble Council,http://statistics.data.gov.uk/doc/local-authority/30UN,Area 2 - Waste Transport/Eastern & Central Teams,External Contractors Charges,4570,5 X CYLINDER REGRINDS - JFC5896 - TMR03A2 - BO,31/03/2016,0000407619,275.00,Revenue,M W GRASS MACHINERY,131838
South Ribble Council,http://statistics.data.gov.uk/doc/local-authority/30UN,Area 2 - Waste Transport/Eastern & Central Teams,External Contractors Charges,4570,BLADES SHARPENED - JFC5898 - TMF04TR - BO,31/03/2016,0000407619,67.00,Revenue,M W GRASS MACHINERY,131838
South Ribble Council,http://statistics.data.gov.uk/doc/local-authority/30UN,Property Services,Rep & Maint Premises,2020,"Attend site 228 Oldfield Road, Walton Summit 1. Repair all the leaks from the gutters 2 Repair the leak",24/03/2016,0000407315,"1,849.50",Revenue,MAINCOAT LTD,00099244
South Ribble Council,http://statistics.data.gov.uk/doc/local-authority/30UN,Property Services,Rep & Maint Premises,2020,materials,24/03/2016,0000407315,"1,520.00",Revenue,MAINCOAT LTD,00099244
South Ribble Council,http://statistics.data.gov.uk/doc/local-authority/30UN,Property Services,Rep & Maint Premises,2020,Please replace the slate at CAB -  ADDRESS REDACTED,24/03/2016,0000407554,70.50,Revenue,MAINCOAT LTD,00099244
South Ribble Council,http://statistics.data.gov.uk/doc/local-authority/30UN,Property Services,Rep & Maint Premises,2020,Please make alterations to the felt roof covering at Carr Street Community Centre,24/03/2016,0000407554,181.50,Revenue,MAINCOAT LTD,00099244
South Ribble Council,http://statistics.data.gov.uk/doc/local-authority/30UN,Property Services,Rep & Maint Premises,2020,materials,24/03/2016,0000407554,325.00,Revenue,MAINCOAT LTD,00099244
South Ribble Council,http://statistics.data.gov.uk/doc/local-authority/30UN,Property Services,Rep & Maint Premises,2020,Materials line 1,24/03/2016,0000407554,3.50,Revenue,MAINCOAT LTD,00099244
South Ribble Council,http://statistics.data.gov.uk/doc/local-authority/30UN,Property Services,Rep & Maint Premises,2020,Please attend site 1 Forward Industrial Estate - re-line the gutter with a fibre glass module 10 x 10 x 10,31/03/2016,0000412346,200.00,Revenue,MAINCOAT LTD,00099244
South Ribble Council,http://statistics.data.gov.uk/doc/local-authority/30UN,Property Services,Rep & Maint Premises,2024,Please install 2 x air vents in the changing rom at Withy Grove changing accommodation,31/03/2016,0000412346,200.00,Revenue,MAINCOAT LTD,00099244
South Ribble Council,http://statistics.data.gov.uk/doc/local-authority/30UN,Property Services,Rep & Maint Premises,2020,Material,31/03/2016,0000412346,230.00,Revenue,MAINCOAT LTD,00099244
South Ribble Council,http://statistics.data.gov.uk/doc/local-authority/30UN,Property Services,Rep & Maint Premises,2024,materials,31/03/2016,0000412346,84.00,Revenue,MAINCOAT LTD,00099244
South Ribble Council,http://statistics.data.gov.uk/doc/local-authority/30UN,Property Services,Rep & Maint Premises,2020,"Please investigate leaking in at various properties Murray Shoe Repairs",31/03/2016,0000412402,178.00,Revenue,MAINCOAT LTD,00099244
South Ribble Council,http://statistics.data.gov.uk/doc/local-authority/30UN,Property Services,Rep & Maint Premises,2020,"Civic Centre 1. Boiler House Roof2. Is the leak outside the solar plant room a call back?",31/03/2016,0000412402,178.00,Revenue,MAINCOAT LTD,00099244
South Ribble Council,http://statistics.data.gov.uk/doc/local-authority/30UN,Property Services,Rep & Maint Premises,2020,Bamber Bridge Leisure Centre - Badmington Court investigate leaking in,31/03/2016,0000412402,144.50,Revenue,MAINCOAT LTD,00099244
South Ribble Council,http://statistics.data.gov.uk/doc/local-authority/30UN,Property Services,Rep & Maint Premises,2020,materilas line 1,31/03/2016,0000412402,9.00,Revenue,MAINCOAT LTD,00099244
South Ribble Council,http://statistics.data.gov.uk/doc/local-authority/30UN,Property Services,Rep & Maint Premises,2020,materials 2,31/03/2016,0000412402,114.00,Revenue,MAINCOAT LTD,00099244
South Ribble Council,http://statistics.data.gov.uk/doc/local-authority/30UN,Property Services,Rep & Maint Premises,2020,materials 3,31/03/2016,0000412402,24.00,Revenue,MAINCOAT LTD,00099244
South Ribble Council,http://statistics.data.gov.uk/doc/local-authority/30UN,Property Services,Rep & Maint Premises,2020,Please attend NAME REDACTED make arrangements for access - liaise with the tenant to arrange,31/03/2016,0000412403,289.00,Revenue,MAINCOAT LTD,00099244
South Ribble Council,http://statistics.data.gov.uk/doc/local-authority/30UN,Property Services,Rep & Maint Premises,2020,materials,31/03/2016,0000412403,258.06,Revenue,MAINCOAT LTD,00099244
South Ribble Council,http://statistics.data.gov.uk/doc/local-authority/30UN,Property Services,Rep & Maint Premises,2020,"attend site ADDRESS REDACTED, supply a working platform and labour. Remove the asbestos",31/03/2016,0000412445,289.00,Revenue,MAINCOAT LTD,00099244
South Ribble Council,http://statistics.data.gov.uk/doc/local-authority/30UN,Property Services,Rep & Maint Premises,2020,materials,31/03/2016,0000412445,258.06,Revenue,MAINCOAT LTD,00099244
South Ribble Council,http://statistics.data.gov.uk/doc/local-authority/30UN,Property Services,Rep & Maint Premises,2020,please install electronic keypads to the new doors at the civic centre,18/03/2016,0000407196,90.00,Revenue,MASTER LOCK & SAFE,00028749
South Ribble Council,http://statistics.data.gov.uk/doc/local-authority/30UN,Property Services,Rep & Maint Premises,2020,materials,18/03/2016,0000407196,244.00,Revenue,MASTER LOCK & SAFE,00028749
South Ribble Council,http://statistics.data.gov.uk/doc/local-authority/30UN,Information Services,Peripherals,4247,MDS43C MDS43 APC RBC43 Compatible Replacement,24/03/2016,0000407529,359.98,Revenue,MDS BATTERY LTD,00116240
South Ribble Council,http://statistics.data.gov.uk/doc/local-authority/30UN,Area 2 - Waste Transport/Eastern & Central Teams,External Contractors Charges,4570,SPEC REPAIR - JFC6189 - MV12SUA - PD,31/03/2016,0000407528,412.71,Revenue,MERLIN DIESEL SYSTEM LTD,130925
South Ribble Council,http://statistics.data.gov.uk/doc/local-authority/30UN,Neighbourhood Admin & Support,Materials General,4040,CARTMEL DRIVE (SRBC SPEC WHITE LETTERING ON BLUE BACK GROUND),18/03/2016,0000407157,92.40,Revenue,MIDLAND SIGNS (LEICESTER) LTD T/A G & G SIGNS,00028273
South Ribble Council,http://statistics.data.gov.uk/doc/local-authority/30UN,Neighbourhood Admin & Support,Materials General,4040,CLEVELEYS ROAD (SRBC SPEC WHITE LETTERING ON BLUE BACKGROUND),18/03/2016,0000407157,189.76,Revenue,MIDLAND SIGNS (LEICESTER) LTD T/A G & G SIGNS,00028273
South Ribble Council,http://statistics.data.gov.uk/doc/local-authority/30UN,Neighbourhood Admin & Support,Materials General,4040,RUSLAND DRIVE (SRBC SPEC WHITE LETTERING ON BLUE BACKGROUND),18/03/2016,0000407157,184.80,Revenue,MIDLAND SIGNS (LEICESTER) LTD T/A G & G SIGNS,00028273
South Ribble Council,http://statistics.data.gov.uk/doc/local-authority/30UN,Neighbourhood Admin & Support,Materials General,4040,WOODHALL CRESCENT T (SRBC SPEC WHITE LETTERING ON BLUE BACKGROUND),18/03/2016,0000407157,114.20,Revenue,MIDLAND SIGNS (LEICESTER) LTD T/A G & G SIGNS,00028273
South Ribble Council,http://statistics.data.gov.uk/doc/local-authority/30UN,Neighbourhood Admin & Support,Materials General,4040,THORNTON DRIVE (SRBC SPEC WHITE LETTERING ON BLUE BACKGROUND),18/03/2016,0000407157,47.44,Revenue,MIDLAND SIGNS (LEICESTER) LTD T/A G & G SIGNS,00028273
South Ribble Council,http://statistics.data.gov.uk/doc/local-authority/30UN,Neighbourhood Admin & Support,Materials General,4040,FOX LANE  (SRBC SPEC WHITE LETTERING ON BLUE BACKGROUND),18/03/2016,0000407157,80.00,Revenue,MIDLAND SIGNS (LEICESTER) LTD T/A G & G SIGNS,00028273
South Ribble Council,http://statistics.data.gov.uk/doc/local-authority/30UN,Neighbourhood Admin & Support,Materials General,4040,FOX LANE plate with rear channels  (SRBC SPEC WHITE LETTERING ON BLUE BACKGROUND),18/03/2016,0000407157,44.04,Revenue,MIDLAND SIGNS (LEICESTER) LTD T/A G & G SIGNS,00028273
South Ribble Council,http://statistics.data.gov.uk/doc/local-authority/30UN,Neighbourhood Admin & Support,Materials General,4040,GRANGE DRIVE  (SRBC SPEC WITH WHITE LETTERING ON BLUE BACKGROUND),18/03/2016,0000407157,44.96,Revenue,MIDLAND SIGNS (LEICESTER) LTD T/A G & G SIGNS,00028273
South Ribble Council,http://statistics.data.gov.uk/doc/local-authority/30UN,Neighbourhood Admin & Support,Materials General,4040,COUPE GREEN (SRBC SPEC WITH WHITE LETTERING ON BLUE BACKGROUND),18/03/2016,0000407157,43.72,Revenue,MIDLAND SIGNS (LEICESTER) LTD T/A G & G SIGNS,00028273
South Ribble Council,http://statistics.data.gov.uk/doc/local-authority/30UN,Neighbourhood Admin & Support,Materials General,4040,plate only to fit in existing frame  (SRBC SPEC WITH WHITE LETTERING ON BLUE BACKGROUND),18/03/2016,0000407157,9.92,Revenue,MIDLAND SIGNS (LEICESTER) LTD T/A G & G SIGNS,00028273
South Ribble Council,http://statistics.data.gov.uk/doc/local-authority/30UN,Neighbourhood Admin & Support,Materials General,4040,carriage,18/03/2016,0000407157,89.64,Revenue,MIDLAND SIGNS (LEICESTER) LTD T/A G & G SIGNS,00028273
South Ribble Council,http://statistics.data.gov.uk/doc/local-authority/30UN,Revenues Plus,Agency Fees,1121,Placement fee  Placement ref: P126360,09/03/2016,0000406697,"5,000.00",Revenue,MORGAN HUNT PUBLIC SECTOR LTD,00120401
South Ribble Council,http://statistics.data.gov.uk/doc/local-authority/30UN,Revenues Plus,Agency Fees,1121,Placement fee ,31/03/2016,0000412459,"5,000.00",Revenue,MORGAN HUNT PUBLIC SECTOR LTD,00120401
South Ribble Council,http://statistics.data.gov.uk/doc/local-authority/30UN,Area 1 - Penwortham Western Parishes,Professional Fees,4521,PROVISION OF STRAY DOG SERVICE - TO COVER FEBRUARY 2016,16/03/2016,0000406606,289.77,Revenue,MORNINGSIDE KENNELS,00067755
South Ribble Council,http://statistics.data.gov.uk/doc/local-authority/30UN,Healthy Communities,External Contractors Charges,4575,Buffets for the month of March 2016,31/03/2016,0000412321,570.00,Revenue,MOSS HOUSE FARM,00121808
South Ribble Council,http://statistics.data.gov.uk/doc/local-authority/30UN,Healthy Communities,External Contractors Charges,4575,Buffets for the month of March 2016,31/03/2016,0000412330,570.00,Revenue,MOSS HOUSE FARM,00121808
South Ribble Council,http://statistics.data.gov.uk/doc/local-authority/30UN,Revenues Plus,Professional Fees,4525,"Capita Benefits Northern User Group buffet lunch on 31.03.2016
45 delegates at 7.50 a head",31/03/2016,0000412331,337.50,Revenue,MOSS HOUSE FARM,00121808
South Ribble Council,http://statistics.data.gov.uk/doc/local-authority/30UN,Property Services,Professional Fees,4520,SRBC 50% Contribution to the construction of a flower bed for the community centre,31/03/2016,0000412359,397.50,Revenue,MOSS SIDE COMMUNITY FORUM,00098724
South Ribble Council,http://statistics.data.gov.uk/doc/local-authority/30UN,Shared Financial Services,Balance Sheet,0030,REFUND,31/03/2016,0000412351,648.00,Revenue,NAME REDACTED,130791
South Ribble Council,http://statistics.data.gov.uk/doc/local-authority/30UN,Planning,Professional Fees,4510,"Longfold Farm, Doles Lane - Perusing Papers and advising in consultation - Prep 4hrs - Con 1hr",24/03/2016,0000407304,"2,275.00",Revenue,Mr David Manley QC,131927
South Ribble Council,http://statistics.data.gov.uk/doc/local-authority/30UN,Area 3 - Parks/Leyland East West,External Contractors Charges,4570,GRASS CUTTING OF MEADOW GRASS AREAS 2015 SEASON,09/03/2016,0000406830,"3,948.94",Revenue,MR J W WILDING,131286
South Ribble Council,http://statistics.data.gov.uk/doc/local-authority/30UN,Area 3 - Parks/Leyland East West,Grounds Maint Cntrctrs Chgs,4657,HIRE OF STUMP GRINDER - ON HIRE 29.2.16 FOR 1 WEEKS HIRE,24/03/2016,0000407506,140.00,Revenue,MTS Nationwide Limited,131839
South Ribble Council,http://statistics.data.gov.uk/doc/local-authority/30UN,Area 3 - Parks/Leyland East West,Grounds Maint Cntrctrs Chgs,4657,HIRE OF 1.5 TON EXCAVATOR - ON HIRE 29.2.16 FOR 1 WEEKS HIRE,24/03/2016,0000407506,108.00,Revenue,MTS Nationwide Limited,131839
South Ribble Council,http://statistics.data.gov.uk/doc/local-authority/30UN,Area 3 - Parks/Leyland East West,Grounds Maint Cntrctrs Chgs,4657,DELIVERY/COLLECTION CHARGES (40 EACH WAY),24/03/2016,0000407506,40.00,Revenue,MTS Nationwide Limited,131839
South Ribble Council,http://statistics.data.gov.uk/doc/local-authority/30UN,Area 3 - Parks/Leyland East West,Grounds Maint Cntrctrs Chgs,4657,gas oil,24/03/2016,0000407506,20.70,Revenue,MTS Nationwide Limited,131839
South Ribble Council,http://statistics.data.gov.uk/doc/local-authority/30UN,Customer Contact,Capital Expenditure,C234,"Please supply as per quote MQ153572	",04/03/2016,0000401238,"6,429.40",Revenue,MYPREMIER LTD,130091
South Ribble Council,http://statistics.data.gov.uk/doc/local-authority/30UN,Customer Contact,Other Misc,4851,"Please supply goods as per quote - MQ153730",09/03/2016,0000401601,"2,984.72",Revenue,MYPREMIER LTD,130091
South Ribble Council,http://statistics.data.gov.uk/doc/local-authority/30UN,Information Services,Peripherals,4247,PDQ Deploy Enterprise Mode - Single User Licence from 27/03/16,24/03/2016,0000407553,887.00,Revenue,MYPREMIER LTD,130091
South Ribble Council,http://statistics.data.gov.uk/doc/local-authority/30UN,Regeneration,Capital Expenditure,C234,Epson EB-U32 Projector and Delivery,31/03/2016,0000412385,596.74,Revenue,MYPREMIER LTD,130091
South Ribble Council,http://statistics.data.gov.uk/doc/local-authority/30UN,HR & Communications,Training Expense-Course Fees,1406,Advisory Service Group Away Day Held on 4 December 2015,09/03/2016,0000406455,872.00,Revenue,N WEST LOCAL AUTH EMPLOYERS ORGANISATION,00029829
South Ribble Council,http://statistics.data.gov.uk/doc/local-authority/30UN,Regeneration,Other Misc,4851,"CMS LicenceWeb Hosting",31/03/2016,0000412404,"1,800.00",Revenue,NEW MIND INTERNET CONSULTANCY LTD,00083328
South Ribble Council,http://statistics.data.gov.uk/doc/local-authority/30UN,Homelessness,Contributions,4730,Agreed void loss Shared house,31/03/2016,0000412341,"1,000.00",Revenue,NEW PROGRESS HOUSING ASSOC ref:DNSOU001,00030135
South Ribble Council,http://statistics.data.gov.uk/doc/local-authority/30UN,Homelessness,Professional Fees,4520,"management fees - correctionRowan Court",31/03/2016,0000412405,197.51,Revenue,NEW PROGRESS HOUSING ASSOC ref:DNSOU001,00030135
South Ribble Council,http://statistics.data.gov.uk/doc/local-authority/30UN,Homelessness,Professional Fees,4520,management fees - correction Sherburn Road,31/03/2016,0000412405,197.51,Revenue,NEW PROGRESS HOUSING ASSOC ref:DNSOU001,00030135
South Ribble Council,http://statistics.data.gov.uk/doc/local-authority/30UN,Homelessness,Professional Fees,4520,Management Fees - correction Pine Court,31/03/2016,0000412405,494.33,Revenue,NEW PROGRESS HOUSING ASSOC ref:DNSOU001,00030135
South Ribble Council,http://statistics.data.gov.uk/doc/local-authority/30UN,Homelessness,Professional Fees,4520,"management fees - correctionCedar Court",31/03/2016,0000412405,345.07,Revenue,NEW PROGRESS HOUSING ASSOC ref:DNSOU001,00030135
South Ribble Council,http://statistics.data.gov.uk/doc/local-authority/30UN,Neighbourhood Admin & Support,Materials General,4040,4 ROW CHANNEL BRUSH - C/W 4 NUTS/BOLTS - 835/66,24/03/2016,0000407552,274.18,Revenue,NORTHERN MUNICIPAL SPARES LTD,00117061
South Ribble Council,http://statistics.data.gov.uk/doc/local-authority/30UN,Area 1 - Penwortham Western Parishes,Professional Fees,4514,DEPLOYMENT OF OFFICERS FEBRUARY 2016,16/03/2016,0000406582,"1,042.85",Revenue,NSL LTD,00116868
South Ribble Council,http://statistics.data.gov.uk/doc/local-authority/30UN,Area 1 - Penwortham Western Parishes,Other Misc,4855,CASH COLLECTION FEBRUARY 2016,16/03/2016,0000406582,173.12,Revenue,NSL LTD,00116868
South Ribble Council,http://statistics.data.gov.uk/doc/local-authority/30UN,Information Services,Peripherals,4247, System Care Support 1/4/16 to 31/3/17,04/03/2016,0000406527,"5,288.00",Revenue,NVIRON LTD,00028781
South Ribble Council,http://statistics.data.gov.uk/doc/local-authority/30UN,Information Services,Peripherals,4241,5 Directed Days,16/03/2016,0000407128,"4,500.00",Revenue,NVIRON LTD,00028781
South Ribble Council,http://statistics.data.gov.uk/doc/local-authority/30UN,Property Services,Professional Fees,4520,compensation for water use,24/03/2016,0000407190,975.00,Revenue,PENWORTHAM TOWN COUNCIL,00120731
South Ribble Council,http://statistics.data.gov.uk/doc/local-authority/30UN,Environmental Health,Professional Fees,4522,,02/03/2016,0000401591,264.00,Revenue,Personnel Checks,131483
South Ribble Council,http://statistics.data.gov.uk/doc/local-authority/30UN,Environmental Health,Professional Fees,4522,,02/03/2016,0000401591,79.98,Revenue,Personnel Checks,131483
South Ribble Council,http://statistics.data.gov.uk/doc/local-authority/30UN,Area 2 - Waste Transport/Eastern & Central Teams,Materials General,4040,1 BARREL OF AD-BLUE - OW1139 (F.C.C.),04/03/2016,0000406448,310.00,Revenue,PILKINGTON OILS,00113531
South Ribble Council,http://statistics.data.gov.uk/doc/local-authority/30UN,Area 3 - Parks/Leyland East West,Grounds Maint Cntrctrs Chgs,4657,PLAYGROUND INSPECTION TRAINING HALF DAY RP11 LEVEL 2 REFRESHER COURSE AND 2 ,09/03/2016,0000406459,500.00,Revenue,PLAYSAFETY  LTD,130638
South Ribble Council,http://statistics.data.gov.uk/doc/local-authority/30UN,Area 3 - Parks/Leyland East West,Grounds Maint Cntrctrs Chgs,4657,,09/03/2016,0000406459,335.00,Revenue,PLAYSAFETY  LTD,130638
South Ribble Council,http://statistics.data.gov.uk/doc/local-authority/30UN,Information Services,Training Expense-Course Fees,1420,"ALPA Award for Licensing Practitioners (Alcohol) 17/05/16, Warrington.  Delegates - ",24/03/2016,0000407601,600.00,Revenue,POPPLESTON ALLEN,130156
South Ribble Council,http://statistics.data.gov.uk/doc/local-authority/30UN,Housing,Cap Grant- Improve Grants,C570,"DFG WORKS TO BATHROM AS PER QUOTE AT 71 CHEETHAM MEADOW,LEYLAND COST OF",24/03/2016,0000407527,"1,478.00",Revenue,Positive Plumbing Solutions Ltd,131562
South Ribble Council,http://statistics.data.gov.uk/doc/local-authority/30UN,Information Services,Stationery,4133,"30,000 sheets Evolution Business A4 90gm 50,000 sheets Evolution Everyday A4 80gm5000 ",02/03/2016,0000402843,407.42,Revenue,PREMIER PAPER GROUP LTD,00022606
South Ribble Council,http://statistics.data.gov.uk/doc/local-authority/30UN,Information Services,Stationery,4133,"75,000 sheets Evolution A4 80gm",04/03/2016,0000406563,340.50,Revenue,PREMIER PAPER GROUP LTD,00022606
South Ribble Council,http://statistics.data.gov.uk/doc/local-authority/30UN,Information Services,Stationery,4133,"60,000 Evolution Everyday A4 80gm 15,000 Evolution Business A4 90gm",31/03/2016,0000412460,353.85,Revenue,PREMIER PAPER GROUP LTD,00022606
South Ribble Council,http://statistics.data.gov.uk/doc/local-authority/30UN,Homelessness,Peripherals,4272,Sanctuary survey and basic - Beech 17.9.15,31/03/2016,0000412427,256.00,Revenue,PRESTON CARE & REPAIR,130877
South Ribble Council,http://statistics.data.gov.uk/doc/local-authority/30UN,Area 2 - Waste Transport/Eastern & Central Teams,External Contractors Charges,4570,TYRE REPAIRS - TR157 - BO,11/03/2016,0000406856,525.60,Revenue,PRESTON TYRE SPECIALISTS,00109516
South Ribble Council,http://statistics.data.gov.uk/doc/local-authority/30UN,Development Enterprise & Comm Mgnt,Other Misc,485A,Annual Website hosting  1st april 2016 to 31st march 2017,24/03/2016,0000407199,600.00,Revenue,PROTEAN SYSTEMS LIMITED,130003
South Ribble Council,http://statistics.data.gov.uk/doc/local-authority/30UN,Area 3 - Parks/Leyland East West,Grounds Maint Cntrctrs Chgs,4657,HIRE OF 5 ON EXCAVATOR - ON HIRE TUESDAY 23.2.16 FOR 2 DAYS HIRE. TO BE DELIVERED,09/03/2016,0000406648,395.00,Revenue,Readyplant Limited,131535
South Ribble Council,http://statistics.data.gov.uk/doc/local-authority/30UN,Area 3 - Parks/Leyland East West,Grounds Maint Cntrctrs Chgs,4657,fuel charge,09/03/2016,0000406648,18.00,Revenue,Readyplant Limited,131535
South Ribble Council,http://statistics.data.gov.uk/doc/local-authority/30UN,Property Services,Rep & Maint Premises,2020,"undertake work at 28 Brierley Road, clean out the unit, replace broken rodding keys and remove",02/03/2016,0000401508,"1,620.00",Revenue,RED ROSE BUILDING MAINTENANCE,00085410
South Ribble Council,http://statistics.data.gov.uk/doc/local-authority/30UN,Property Services,Rep & Maint Premises,2020,,02/03/2016,0000401508,43.00,Revenue,RED ROSE BUILDING MAINTENANCE,00085410
South Ribble Council,http://statistics.data.gov.uk/doc/local-authority/30UN,Property Services,Rep & Maint Premises,2020,"supply butterfly valves into the drainage system at ADDRESS REDACTED, Walton Summit. Supply ",04/03/2016,0000401555,864.00,Revenue,RED ROSE BUILDING MAINTENANCE,00085410
South Ribble Council,http://statistics.data.gov.uk/doc/local-authority/30UN,Property Services,Rep & Maint Premises,2020,materials,04/03/2016,0000401555,438.00,Revenue,RED ROSE BUILDING MAINTENANCE,00085410
South Ribble Council,http://statistics.data.gov.uk/doc/local-authority/30UN,Property Services,Rep & Maint Premises,2020,Middleforth Industrial Estate - Communal Road Fill potholes requested by TL and ordered by DR,04/03/2016,0000401557,216.00,Revenue,RED ROSE BUILDING MAINTENANCE,00085410
South Ribble Council,http://statistics.data.gov.uk/doc/local-authority/30UN,Property Services,Rep & Maint Premises,2020,Materials,04/03/2016,0000401557,114.00,Revenue,RED ROSE BUILDING MAINTENANCE,00085410
South Ribble Council,http://statistics.data.gov.uk/doc/local-authority/30UN,Homelessness,Contractors Charges 5,5311,Old Steam Mill costs 1/4/2016 - 30/6/2016 FOR NEXT FINANCIAL YEAR 2016/17,24/03/2016,0000407306,"5,624.90",Revenue,REDDY & CO,00108177
South Ribble Council,http://statistics.data.gov.uk/doc/local-authority/30UN,Shared Financial Services,Grounds Maint Cntrctrs Chgs,4657,inv 513,09/03/2016,0000406572,"3,260.00",Revenue,Reid Construction & Civil Engineering Ltd,131544
South Ribble Council,http://statistics.data.gov.uk/doc/local-authority/30UN,Shared Financial Services,External Contractors Charges,4570,INV 514,09/03/2016,0000406572,"1,099.00",Revenue,Reid Construction & Civil Engineering Ltd,131544
South Ribble Council,http://statistics.data.gov.uk/doc/local-authority/30UN,Shared Financial Services,External Contractors Charges,4570,INV 515,09/03/2016,0000406572,727.00,Revenue,Reid Construction & Civil Engineering Ltd,131544
South Ribble Council,http://statistics.data.gov.uk/doc/local-authority/30UN,Shared Financial Services,Grounds Maint Cntrctrs Chgs,4657,INV 524,09/03/2016,0000406572,620.00,Revenue,Reid Construction & Civil Engineering Ltd,131544
South Ribble Council,http://statistics.data.gov.uk/doc/local-authority/30UN,Environmental Health,External Contractors Charges,4570,"Land drainage works at Comet Road, Leyland ",18/03/2016,0000406573,"2,080.00",Revenue,Reid Construction & Civil Engineering Ltd,131544
South Ribble Council,http://statistics.data.gov.uk/doc/local-authority/30UN,Environmental Health,External Contractors Charges,4570,"Land drainage works at Comet Road, Leyland ",18/03/2016,0000406574,"4,200.00",Revenue,Reid Construction & Civil Engineering Ltd,131544
South Ribble Council,http://statistics.data.gov.uk/doc/local-authority/30UN,Environmental Health,External Contractors Charges,4570,"Further works on Cumberland Ave, Leyland refers to order PUR0022900 ",31/03/2016,0000406575,480.00,Revenue,Reid Construction & Civil Engineering Ltd,131544
South Ribble Council,http://statistics.data.gov.uk/doc/local-authority/30UN,Environmental Health,External Contractors Charges,4570,"Further works on Cumberland Ave, Leyland refers to order PUR0022900",31/03/2016,0000406576,714.20,Revenue,Reid Construction & Civil Engineering Ltd,131544
South Ribble Council,http://statistics.data.gov.uk/doc/local-authority/30UN,Environmental Health,External Contractors Charges,4570,For de- silting at King Georges Playing Fields for 3040.00 + vat,18/03/2016,0000406577,"1,920.00",Revenue,Reid Construction & Civil Engineering Ltd,131544
South Ribble Council,http://statistics.data.gov.uk/doc/local-authority/30UN,Environmental Health,External Contractors Charges,4570,For de- silting at King Georges Playing Fields for 3040.00 + vat ,18/03/2016,0000406578,940.00,Revenue,Reid Construction & Civil Engineering Ltd,131544
South Ribble Council,http://statistics.data.gov.uk/doc/local-authority/30UN,Environmental Health,External Contractors Charges,4570,Western Drive 26.12.15 - Materials & Plant.,11/03/2016,0000406831,"1,520.00",Revenue,Reid Construction & Civil Engineering Ltd,131544
South Ribble Council,http://statistics.data.gov.uk/doc/local-authority/30UN,Environmental Health,External Contractors Charges,4570,Western Drive Flood response 26.12.15 - Labour.,11/03/2016,0000406832,"4,120.00",Revenue,Reid Construction & Civil Engineering Ltd,131544
South Ribble Council,http://statistics.data.gov.uk/doc/local-authority/30UN,Environmental Health,External Contractors Charges,4570,"For the supply of a main line CCTV unit and high pressure jetting unit for two days, ",24/03/2016,0000407550,"2,640.00",Revenue,Reid Construction & Civil Engineering Ltd,131544
South Ribble Council,http://statistics.data.gov.uk/doc/local-authority/30UN,Building Control,Professional Fees,4510,Subscription for Submit a Plan,09/03/2016,0000406556,"1,598.00",Revenue,RESOLUTION DATA MANAGEMENT LTD,00095439
South Ribble Council,http://statistics.data.gov.uk/doc/local-authority/30UN,Environmental Health,Capital Expenditure,C231,Renewal of riams for 2016.,24/03/2016,0000407225,"3,000.00",Revenue,RHE LIMITED,00120207
South Ribble Council,http://statistics.data.gov.uk/doc/local-authority/30UN,Area 2 - Waste Transport/Eastern & Central Teams,External Contractors Charges,4570,SPEC REPAIR - VK09 AHJ - JFC6501 - AW,31/03/2016,0000412419,277.20,Revenue,RIBBLESDALE AUTO ELECTRICS 1992 LTD,00033129
South Ribble Council,http://statistics.data.gov.uk/doc/local-authority/30UN,Information Services,Lease Rental Charges,4036,1/2/16 to 30/4/16,02/03/2016,0000401571,"9,709.94",Revenue,RICOH (UK) LTD,00082976
South Ribble Council,http://statistics.data.gov.uk/doc/local-authority/30UN,Information Services,Lease Rental Charges,4036,1/2/16 to 30/4/16,09/03/2016,0000406837,"1,866.00",Revenue,RICOH (UK) LTD,00082976
South Ribble Council,http://statistics.data.gov.uk/doc/local-authority/30UN,Area 1 - Penwortham Western Parishes,Materials General,4040,10 X 150g CHIKARA (@175 EACH),24/03/2016,0000407206,"1,750.00",Revenue,RIGBY TAYLOR LTD,00033145
South Ribble Council,http://statistics.data.gov.uk/doc/local-authority/30UN,Area 1 - Penwortham Western Parishes,Materials General,4040,8 X 5 LITRE CONTAINERS - TRUSTEE AMENITY 450 (@27 PER 5 LTR CONTAINER),24/03/2016,0000407206,216.00,Revenue,RIGBY TAYLOR LTD,00033145
South Ribble Council,http://statistics.data.gov.uk/doc/local-authority/30UN,Neighbourhood Admin & Support,Materials General,4040,IMPACT XP ECO BAG (2 x 5l) 9FG001A,24/03/2016,0000407207,310.00,Revenue,RIGBY TAYLOR LTD,00033145
South Ribble Council,http://statistics.data.gov.uk/doc/local-authority/30UN,Neighbourhood Admin & Support,Materials General,4040,DELIVERY,24/03/2016,0000407207,10.75,Revenue,RIGBY TAYLOR LTD,00033145
South Ribble Council,http://statistics.data.gov.uk/doc/local-authority/30UN,Information Services,Postage,4295,,02/03/2016,0000401572,275.08,Revenue,ROYAL MAIL GROUP PLC,00033543
South Ribble Council,http://statistics.data.gov.uk/doc/local-authority/30UN,HR & Communications,Training Expense-Course Fees,1402,"RTPI, Course bookings, season ticket for Planning Dept",24/03/2016,0000406855,800.00,Revenue,RTPI,00033491
South Ribble Council,http://statistics.data.gov.uk/doc/local-authority/30UN,HR & Communications,Payroll Suspense,1741,ANNUAL SUBSCRIPTION,18/03/2016,0000407193,290.00,Revenue,RTPI,00033491
South Ribble Council,http://statistics.data.gov.uk/doc/local-authority/30UN,Area 2 - Waste Transport/Eastern & Central Teams,Operational Furniture & Equip,4010,SUPPLY AND FIT 2 OIL PUMPS - WORKSHOP EQUIPMENT,04/03/2016,0000406458,515.71,Revenue,S & R GARAGE EQUIPMENT,130892
South Ribble Council,http://statistics.data.gov.uk/doc/local-authority/30UN,Area 2 - Waste Transport/Eastern & Central Teams,External Contractors Charges,4570,SPEC REPAIR - PN54 DXX - JFC6321 - GA,24/03/2016,0000407226,328.50,Revenue,S.J. & C.W. WILKINSONS LTD,131536
South Ribble Council,http://statistics.data.gov.uk/doc/local-authority/30UN,Development Enterprise & Comm Mgnt,Other Misc,485A,Coastal Communities Fund Small Business Grant of 500.00,31/03/2016,0000407504,500.00,Revenue,NAME REDACTED,131928
South Ribble Council,http://statistics.data.gov.uk/doc/local-authority/30UN,Property Services,Energy Costs,2307,CCL,24/03/2016,0000407239,115.61,Revenue,SCOTTISH HYDRO ELECTRIC,130051
South Ribble Council,http://statistics.data.gov.uk/doc/local-authority/30UN,Property Services,Energy Costs,2304,5/2/16 to 3/3/16,24/03/2016,0000407239,"1,682.16",Revenue,SCOTTISH HYDRO ELECTRIC,130051
South Ribble Council,http://statistics.data.gov.uk/doc/local-authority/30UN,Property Services,Energy Costs,2304,25/11/15 to 1/3/16,24/03/2016,0000407240,"2,063.06",Revenue,SCOTTISH HYDRO ELECTRIC,130051
South Ribble Council,http://statistics.data.gov.uk/doc/local-authority/30UN,Property Services,Energy Costs,2307,CCL,24/03/2016,0000407240,156.15,Revenue,SCOTTISH HYDRO ELECTRIC,130051
South Ribble Council,http://statistics.data.gov.uk/doc/local-authority/30UN,Property Services,Energy Costs,2304,5/12/15 to 2/3/16,24/03/2016,0000407246,"1,396.29",Revenue,SCOTTISH HYDRO ELECTRIC,130051
South Ribble Council,http://statistics.data.gov.uk/doc/local-authority/30UN,Property Services,Energy Costs,2307,CCL,24/03/2016,0000407246,108.14,Revenue,SCOTTISH HYDRO ELECTRIC,130051
South Ribble Council,http://statistics.data.gov.uk/doc/local-authority/30UN,Information Services,Capital Expenditure,C234,Selima Server move - 6 days @ 850 (5100.00) and 7 Universe Licences (1393.00),24/03/2016,0000407503,"5,100.00",Revenue,SELIMA SOFTWARE LTD,00043368
South Ribble Council,http://statistics.data.gov.uk/doc/local-authority/30UN,Democratic Services,Balance Sheet,0400,Presiding Officers Sundries Pack x 80 (PCCSDBAG) - Police & Crime Commission,04/03/2016,0000401589,980.00,Revenue,SHAW & SONS LTD,00034542
South Ribble Council,http://statistics.data.gov.uk/doc/local-authority/30UN,Democratic Services,Balance Sheet,0400,Conversion Pack (LEPCCCP) - Police & Crime / Local Election x 5,04/03/2016,0000401589,27.25,Revenue,SHAW & SONS LTD,00034542
South Ribble Council,http://statistics.data.gov.uk/doc/local-authority/30UN,Democratic Services,Balance Sheet,0400,Local Election Conversion Pack (PCELECP) - Local to Parish x 5,04/03/2016,0000401589,27.25,Revenue,SHAW & SONS LTD,00034542
South Ribble Council,http://statistics.data.gov.uk/doc/local-authority/30UN,Information Services,Professional Fees,4520,Shredding of Confidential waste 2015/16,24/03/2016,0000407308,257.92,Revenue,SHRED-IT LTD,00109134
South Ribble Council,http://statistics.data.gov.uk/doc/local-authority/30UN,Environmental Health,Training Expense-Course Fees,1400,managing safety course,31/03/2016,0000407665,260.00,Revenue,SMC LTD,130911
South Ribble Council,http://statistics.data.gov.uk/doc/local-authority/30UN,Environmental Health,External Contractors Charges,4570,"Clean at Belmont, Gill Lane, Walmer Bridge.",04/03/2016,0000400901,"1,000.00",Revenue,SMJ CONTRACT CLEANING,130044
South Ribble Council,http://statistics.data.gov.uk/doc/local-authority/30UN,Information Services,Peripherals,4248,Extends the service agreement on an existing licence of Cerberus FTP Server Professional for 1 year,18/03/2016,0000407202,357.94,Revenue,SOFTCAT LIMITED,130963
South Ribble Council,http://statistics.data.gov.uk/doc/local-authority/30UN,Area 2 - Waste Transport/Eastern & Central Teams,Materials General,4040,"6 CYLINDERS - BIN 1293A, 6 BOTTOM BLADES - BIN 1265A  BO",16/03/2016,0000400846,"1,582.47",Revenue,SPALDINGS,00070849
South Ribble Council,http://statistics.data.gov.uk/doc/local-authority/30UN,Neighbourhood Admin & Support,Operational Furniture & Equip,4010,LITTER PICKER (CURVED) - HA340,18/03/2016,0000407252,756.00,Revenue,SPALDINGS,00070849
South Ribble Council,http://statistics.data.gov.uk/doc/local-authority/30UN,Information Services,Processing-Internal,4212,1yr extension for Netcrunch 7  for period 25/05/15 - 25/05/16,24/03/2016,0000364847,345.00,Revenue,STACK DATA SOLUTIONS LTD,130504
South Ribble Council,http://statistics.data.gov.uk/doc/local-authority/30UN,Information Services,Processing-Internal,4212,1 day on-site time to install and setup Netcrunch,24/03/2016,0000364847,960.00,Revenue,STACK DATA SOLUTIONS LTD,130504
South Ribble Council,http://statistics.data.gov.uk/doc/local-authority/30UN,Neighbourhood Admin & Support,Vehicle Running Costs,3132,"17,000 LITRES DIESEL (@80.92PENCE PER LITRE)",16/03/2016,0000407154,"13,940.70",Revenue,Standard Fuel Oils LtdMain,131556
South Ribble Council,http://statistics.data.gov.uk/doc/local-authority/30UN,Neighbourhood Admin & Support,Vehicle Running Costs,3134,2500 LITRES GAS OIL (@ 36 PENCE PER LITRE),31/03/2016,0000407739,910.50,Revenue,Standard Fuel Oils LtdMain,131556
South Ribble Council,http://statistics.data.gov.uk/doc/local-authority/30UN,Neighbourhood Admin & Support,Vehicle Running Costs,3132,"12,000 LITRES DIESEL (@83 PENCE PER LITRE)",31/03/2016,0000407784,"10,023.60",Revenue,Standard Fuel Oils LtdMain,131556
South Ribble Council,http://statistics.data.gov.uk/doc/local-authority/30UN,Property Services,Rents,2401,"2016 / 2017 rental fees for Forward Industrial Estate Talbot Road, Leyland",09/03/2016,0000406834,"12,537.50",Revenue,STONEWELL PROPERTY COMPANY LTD,00118138
South Ribble Council,http://statistics.data.gov.uk/doc/local-authority/30UN,Property Services,Rents,2401,less qtr charge,09/03/2016,0000406834,"-2,850.00",Revenue,STONEWELL PROPERTY COMPANY LTD,00118138
South Ribble Council,http://statistics.data.gov.uk/doc/local-authority/30UN,Area 3 - Parks/Leyland East West,Grounds Maint Cntrctrs Chgs,4657,1 x TZS075  ROTAPLAY BEARING REPLACEMENT KIT,16/03/2016,0000400540,843.69,Revenue,SUTCLIFFE PLAY LTD,00034953
South Ribble Council,http://statistics.data.gov.uk/doc/local-authority/30UN,Area 3 - Parks/Leyland East West,Grounds Maint Cntrctrs Chgs,4657,CARRIAGE,16/03/2016,0000400540,84.37,Revenue,SUTCLIFFE PLAY LTD,00034953
South Ribble Council,http://statistics.data.gov.uk/doc/local-authority/30UN,Area 3 - Parks/Leyland East West,Grounds Maint Cntrctrs Chgs,4657,Repair overhead rotator- remove old bearing and install new bearing. Tardy Gate Play Ground,16/03/2016,0000401600,380.00,Revenue,SUTCLIFFE PLAY LTD,00034953
South Ribble Council,http://statistics.data.gov.uk/doc/local-authority/30UN,Property Services,Cleaning and Domestic Supplies,2711,Please supply janitorial products for caretakers at Civic Centre Leyland PR25 1DH -,31/03/2016,0000407298,554.91,Revenue,SWIFT KLEEN,00119360
South Ribble Council,http://statistics.data.gov.uk/doc/local-authority/30UN,Revenues Plus,Stationery,4130,5000 blue benefit claim forms,24/03/2016,0000407549,"1,970.00",Revenue,SYSTEM CELL LTD,00108122
South Ribble Council,http://statistics.data.gov.uk/doc/local-authority/30UN,Area 2 - Waste Transport/Eastern & Central Teams,External Contractors Charges,4570,SPEC REPAIR - JFC6384 - VO65 KPY - PD,31/03/2016,0000407580,"6,369.18",Revenue,TERBERG MATEC UK LTD,00058625
South Ribble Council,http://statistics.data.gov.uk/doc/local-authority/30UN,Area 2 - Waste Transport/Eastern & Central Teams,External Contractors Charges,4570,SPEC REPAIR - JFC6445 - VN0DKV - RA,31/03/2016,0000412411,"5,241.06",Revenue,TERBERG MATEC UK LTD,00058625
South Ribble Council,http://statistics.data.gov.uk/doc/local-authority/30UN,Property Services,Rep & Maint Premises,2020," annual service contract for the outer, middle & inner bi-part slider the double power swing door",16/03/2016,0000406614,350.00,Revenue,THE AUTOMATIC DOOR COMPANY LTD,00108533
South Ribble Council,http://statistics.data.gov.uk/doc/local-authority/30UN,Property Services,Rep & Maint Premises,2020,"2015 / 2016 service contract for the caf� door 1, caf� door 2, car park entrance left & right, sliding doors",16/03/2016,0000406614,260.00,Revenue,THE AUTOMATIC DOOR COMPANY LTD,00108533
South Ribble Council,http://statistics.data.gov.uk/doc/local-authority/30UN,Legal,Publications,4142,local authority licensing LL SVC,02/03/2016,0000400829,559.00,Revenue,THOMSON REUTERS,00034979
South Ribble Council,http://statistics.data.gov.uk/doc/local-authority/30UN,Legal,Publications,4142,westlaw,31/03/2016,0000401251,"9,121.86",Revenue,THOMSON REUTERS,00034979
South Ribble Council,http://statistics.data.gov.uk/doc/local-authority/30UN,Area 3 - Parks/Leyland East West,Grounds Maint Cntrctrs Chgs,4657,"3x Replacement Rocking Beam, Pre Drilled including screws (Code 0.9997) @ 154.80 each.",04/03/2016,0000401529,318.00,Revenue,TIMBERPLAY LTD,00055440
South Ribble Council,http://statistics.data.gov.uk/doc/local-authority/30UN,Area 3 - Parks/Leyland East West,Grounds Maint Cntrctrs Chgs,4657,Carriage,04/03/2016,0000401529,31.80,Revenue,TIMBERPLAY LTD,00055440
South Ribble Council,http://statistics.data.gov.uk/doc/local-authority/30UN,Homelessness,Contributions,4730,rent in advance for NAME AND ADDRESS REDACTED,18/03/2016,0000407195,420.00,Revenue,Town & City Leisure Limited,131844
South Ribble Council,http://statistics.data.gov.uk/doc/local-authority/30UN,Regeneration,Sports Dev Expenses,4894,540 x A4 Scootsafe Booklet,16/03/2016,0000406829,376.00,Revenue,TOWNSEND PRINT SERVICES LTD,00037170
South Ribble Council,http://statistics.data.gov.uk/doc/local-authority/30UN,Regeneration,Consultancy Fees,4541,"Rental of Room 4 Church Row Chambers, Longton from 1st October 2015 to 31st October 2016",24/03/2016,0000407310,843.75,Revenue,Tustin Developments Limited,131628
South Ribble Council,http://statistics.data.gov.uk/doc/local-authority/30UN,Democratic Services,Other Misc,4970,Annual maint charge for TFf-255 Paper Folder 23/03/2016-22/03/2017  Contract Number TMA8427,02/03/2016,0000406422,737.45,Revenue,Twofold Ltd,131436
South Ribble Council,http://statistics.data.gov.uk/doc/local-authority/30UN,Information Services,Office Machines Maintenance,4026,HiPath 4000 annual support & maintenance for period 16/05/16 - 15/05/17,31/03/2016,0000407620,"8,882.16",Revenue,UNIFY ENTERPRISE COMMUNICATIONS LTD,00109765
South Ribble Council,http://statistics.data.gov.uk/doc/local-authority/30UN,Property Services,Water Charges,2511,13/11/15 to 18/2/16,02/03/2016,0000401538,580.92,Revenue,UNITED UTILITIES WATER PLC,00029845
South Ribble Council,http://statistics.data.gov.uk/doc/local-authority/30UN,Property Services,Water Charges,2511,13/11/15 to 9/2/16,02/03/2016,0000401539,"1,906.09",Revenue,UNITED UTILITIES WATER PLC,00029845
South Ribble Council,http://statistics.data.gov.uk/doc/local-authority/30UN,Environmental Health,Consultancy Fees,4542,Analysis of Water Samples from April 15 - March 16.,09/03/2016,0000406602,292.00,Revenue,UNITED UTILITIES WATER PLC,130293
South Ribble Council,http://statistics.data.gov.uk/doc/local-authority/30UN,Property Services,Water Charges,2511,18/11/15 to 14/2/16,11/03/2016,0000406841,"6,546.00",Revenue,UNITED UTILITIES WATER PLC,00029845
South Ribble Council,http://statistics.data.gov.uk/doc/local-authority/30UN,Property Services,Water Charges,2511,1/4/16 31/3/17,24/03/2016,0000407440,"1,621.64",Revenue,UNITED UTILITIES WATER PLC,00029845
South Ribble Council,http://statistics.data.gov.uk/doc/local-authority/30UN,Property Services,Water Charges,2511,14/11/15 to 12/2/16,24/03/2016,0000407442,"3,110.49",Revenue,UNITED UTILITIES WATER PLC,00029845
South Ribble Council,http://statistics.data.gov.uk/doc/local-authority/30UN,Environmental Health,Consultancy Fees,4542,Analysis of Water Samples from April 15 - March 16.,31/03/2016,0000412364,268.00,Revenue,UNITED UTILITIES WATER PLC,130293
South Ribble Council,http://statistics.data.gov.uk/doc/local-authority/30UN,Property Services,Rep & Maint Premises,2020,"carry out work to make repairs to the servery at the civic centre - 3kg refrigerant & 4 hours labour.",04/03/2016,0000406420,277.70,Revenue,UNIVERSAL COOLING LTD,130914
South Ribble Council,http://statistics.data.gov.uk/doc/local-authority/30UN,Community Safety,External Contractors Charges,4570,GROVE PARK VB-30/4/1 RECORDER AND TRANS UNIT TO BE INSTALLED IN COLUMN BASE,31/03/2016,0000407539,"2,250.00",Revenue,Vemotion Interactive Ltd,131574
South Ribble Council,http://statistics.data.gov.uk/doc/local-authority/30UN,Community Safety,External Contractors Charges,4570,VEMOTION STREAMING SERVER 1 CHANNEL VSS-1,31/03/2016,0000407539,200.00,Revenue,Vemotion Interactive Ltd,131574
South Ribble Council,http://statistics.data.gov.uk/doc/local-authority/30UN,Community Safety,External Contractors Charges,4570,FULL HARDWARE & SOFTWARE INSTALLATION AT SITE V-PRF/I,31/03/2016,0000407539,395.00,Revenue,Vemotion Interactive Ltd,131574
South Ribble Council,http://statistics.data.gov.uk/doc/local-authority/30UN,Community Safety,External Contractors Charges,4570,COMMISSIONING & START UP TRAINING V-PRF/CT,31/03/2016,0000407539,150.00,Revenue,Vemotion Interactive Ltd,131574
South Ribble Council,http://statistics.data.gov.uk/doc/local-authority/30UN,Community Safety,Operational Furniture & Equip,4013,VEMOTION HOSTING SERVER V-HST/1 @ 20/MONTH,31/03/2016,0000407539,240.00,Revenue,Vemotion Interactive Ltd,131574
South Ribble Council,http://statistics.data.gov.uk/doc/local-authority/30UN,Community Safety,Operational Furniture & Equip,4013,SUPPORT & MAINT INCL REMOTE SUPPORT AND ALL RELEVANT SOFTWARE UPGRADE,31/03/2016,0000407539,250.00,Revenue,Vemotion Interactive Ltd,131574
South Ribble Council,http://statistics.data.gov.uk/doc/local-authority/30UN,Community Safety,External Contractors Charges,4570,1 YEAR SIM CONTRACT (CAMERA) V-SIM/15,31/03/2016,0000407539,180.00,Revenue,Vemotion Interactive Ltd,131574
South Ribble Council,http://statistics.data.gov.uk/doc/local-authority/30UN,Community Safety,Operational Furniture & Equip,4013,1 YEAR SIM CONTRACT (VIEWER) V-SIM/15,31/03/2016,0000407539,180.00,Revenue,Vemotion Interactive Ltd,131574
South Ribble Council,http://statistics.data.gov.uk/doc/local-authority/30UN,Community Safety,External Contractors Charges,4570,MOSS SIDE COMMUNITY CENTRE - VB30 RECORDER & TRANSMISSION UNIT TO BE INSTALLED ,31/03/2016,0000407540,"2,250.00",Revenue,Vemotion Interactive Ltd,131574
South Ribble Council,http://statistics.data.gov.uk/doc/local-authority/30UN,Community Safety,External Contractors Charges,4570,VEMOTION STREAMING SERVER 1 CHANNEL VSS-1,31/03/2016,0000407540,200.00,Revenue,Vemotion Interactive Ltd,131574
South Ribble Council,http://statistics.data.gov.uk/doc/local-authority/30UN,Community Safety,External Contractors Charges,4570,FULL HARDWARE & SOFTWARE INSTALLATION AT SITE V-PRF/I,31/03/2016,0000407540,395.00,Revenue,Vemotion Interactive Ltd,131574
South Ribble Council,http://statistics.data.gov.uk/doc/local-authority/30UN,Community Safety,External Contractors Charges,4570,COMMISSIONING AND START UP TRAINING V-PRF/CT,31/03/2016,0000407540,150.00,Revenue,Vemotion Interactive Ltd,131574
South Ribble Council,http://statistics.data.gov.uk/doc/local-authority/30UN,Community Safety,Operational Furniture & Equip,4013,VEMOTION HOSTING SERVER V-HST/1,31/03/2016,0000407540,240.00,Revenue,Vemotion Interactive Ltd,131574
South Ribble Council,http://statistics.data.gov.uk/doc/local-authority/30UN,Community Safety,Operational Furniture & Equip,4013,SUPPORT & MAINTENANCE INCLUDES REMOTE SUPPORT AND ALL RELEVANT SOFTWARE ,31/03/2016,0000407540,250.00,Revenue,Vemotion Interactive Ltd,131574
South Ribble Council,http://statistics.data.gov.uk/doc/local-authority/30UN,Community Safety,Operational Furniture & Equip,4013,1 YEAR SIM CONTRACT (CAMERA) V-SIM/15,31/03/2016,0000407540,180.00,Revenue,Vemotion Interactive Ltd,131574
South Ribble Council,http://statistics.data.gov.uk/doc/local-authority/30UN,Community Safety,Operational Furniture & Equip,4013,1 YEAR SIM CONTRACT (VIEWER) V-SIM/15,31/03/2016,0000407540,180.00,Revenue,Vemotion Interactive Ltd,131574
South Ribble Council,http://statistics.data.gov.uk/doc/local-authority/30UN,Healthy Communities,Operational Furniture & Equip,4012,coffee machine hire Mar,04/03/2016,0000406453,322.11,Revenue,VENDING ENTERPRISES,00101501
South Ribble Council,http://statistics.data.gov.uk/doc/local-authority/30UN,Healthy Communities,Operational Furniture & Equip,4012,Stock for the hired hot drinks machines,04/03/2016,0000406552,441.10,Revenue,VENDING ENTERPRISES,00101501
South Ribble Council,http://statistics.data.gov.uk/doc/local-authority/30UN,Property Services,Rep & Maint Fixed Plant,2035,"2016 / 2017 contract for CCTV monitoring at Moss Side Depot, Leyland",09/03/2016,0000406524,"2,533.53",Revenue,VISUAL VERIFICATION LTD,00079992
South Ribble Council,http://statistics.data.gov.uk/doc/local-authority/30UN,Property Services,Rep & Maint Fixed Plant,2035,"2016 / 2017 contract for CCTV monitoring at the Civic Centre, Leyland",09/03/2016,0000406551,"2,520.99",Revenue,VISUAL VERIFICATION LTD,00079992
South Ribble Council,http://statistics.data.gov.uk/doc/local-authority/30UN,Information Services,Peripherals,4269,"Annual purchase order for ISDN lines, line rentals & call charges for period 01/04/15 - 31/03/16",04/03/2016,0000406550,"1,296.34",Revenue,VODAFONE RE:CABLE & WIRELESS UK,130810
South Ribble Council,http://statistics.data.gov.uk/doc/local-authority/30UN,Information Services,Peripherals,4247,"Annual purchase order for link, internet & router for period 01/04/15 - 31/03/16",09/03/2016,0000406613,"1,312.66",Revenue,VODAFONE RE:CABLE & WIRELESS UK,130810
South Ribble Council,http://statistics.data.gov.uk/doc/local-authority/30UN,Development Enterprise & Comm Mgnt,Capital Expenditure,C305,Community Bids Funding: Defibrillator,31/03/2016,0000412408,300.00,Revenue,WALMER BRIDGE VILLAGE HALL,00076694
South Ribble Council,http://statistics.data.gov.uk/doc/local-authority/30UN,Property Services,Rep & Maint Premises,2020,working drawings and copies to property services for Leyland Market PR25 2AA for the fire escape,02/03/2016,0000406419,615.00,Revenue,Watson Stirrup Architects Ltd,131433
South Ribble Council,http://statistics.data.gov.uk/doc/local-authority/30UN,Property Services,Rep & Maint Premises,2020,"carry out a survey and type 3 asbestos survey at 254 Dawson Place, Walton Summit",04/03/2016,0000406548,795.00,Revenue,WELDLAG (PRESTON) LTD,00099299
South Ribble Council,http://statistics.data.gov.uk/doc/local-authority/30UN,Revenues Plus,Postage,4291,Revenues mail services February 2016,04/03/2016,0000401562,490.35,Revenue,WHISTL  UK LTD,131310
South Ribble Council,http://statistics.data.gov.uk/doc/local-authority/30UN,Revenues Plus,Postage,4291,Revenues mail services February 2016,04/03/2016,0000401577,346.07,Revenue,WHISTL  UK LTD,131310
South Ribble Council,http://statistics.data.gov.uk/doc/local-authority/30UN,Revenues Plus,Postage,4291,Revenues mail services February 2016,04/03/2016,0000406415,451.70,Revenue,WHISTL  UK LTD,131310
South Ribble Council,http://statistics.data.gov.uk/doc/local-authority/30UN,Revenues Plus,Postage,4291,Revenues mail services February 2016,16/03/2016,0000407150,372.04,Revenue,WHISTL  UK LTD,131310
South Ribble Council,http://statistics.data.gov.uk/doc/local-authority/30UN,Revenues Plus,Postage,4291,Revenues mail services February 2016,16/03/2016,0000407151,378.43,Revenue,WHISTL  UK LTD,131310
South Ribble Council,http://statistics.data.gov.uk/doc/local-authority/30UN,Revenues Plus,Postage,4291,Mail Services - Revenues - January,24/03/2016,0000407547,672.07,Revenue,WHISTL  UK LTD,131310
South Ribble Council,http://statistics.data.gov.uk/doc/local-authority/30UN,Revenues Plus,Postage,4291,Mail Services - Revenues - January,24/03/2016,0000407548,521.40,Revenue,WHISTL  UK LTD,131310
South Ribble Council,http://statistics.data.gov.uk/doc/local-authority/30UN,Governance & Business Transf Mgnt,Other Misc,4851,LEGAL ADVICE,02/03/2016,0000395552,"9,442.75",Revenue,WILKIN CHAPMAN LLP,131825
South Ribble Council,http://statistics.data.gov.uk/doc/local-authority/30UN,HR & Communications,Other Misc,4851,WORK CARRIES OUT IN RESPECT OF LICENSING STAFF DISCIPLINARY,09/03/2016,0000406418,"7,218.40",Revenue,WILKIN CHAPMAN LLP,131825
South Ribble Council,http://statistics.data.gov.uk/doc/local-authority/30UN,HR & Communications,Other Misc,4851,expenses,09/03/2016,0000406418,283.05,Revenue,WILKIN CHAPMAN LLP,131825
South Ribble Council,http://statistics.data.gov.uk/doc/local-authority/30UN,Governance & Business Transf Mgnt,Other Misc,4851,legal advice  16 & 30 November 2015,09/03/2016,0000406828,"7,342.34",Revenue,WILKIN CHAPMAN LLP,131825
South Ribble Council,http://statistics.data.gov.uk/doc/local-authority/30UN,Area 3 - Parks/Leyland East West,Capital Expenditure,C230,CONSTRUCTION OF NEW FOOTPATH LINK FROM DOB LANE WALMER BRIDGE VILLAGE HALL,09/03/2016,0000401448,"15,646.00",Revenue,WILLIAM PYE LTD,00031590
South Ribble Council,http://statistics.data.gov.uk/doc/local-authority/30UN,Area 3 - Parks/Leyland East West,Grounds Maint Cntrctrs Chgs,4657,REPAIR GATEWAY / ACESS PATH AT WESTLANDS MOSS SIDE (QUOTE 15740),16/03/2016,0000406469,675.00,Revenue,WILLIAM PYE LTD,00031590
South Ribble Council,http://statistics.data.gov.uk/doc/local-authority/30UN,Area 3 - Parks/Leyland East West,Grounds Maint Cntrctrs Chgs,4657,"REPAIR FIRE DAMAGE TO EXISTING BITMAC, MOSS ISIDE BALL COURT (QUOTE 15741",16/03/2016,0000406469,715.00,Revenue,WILLIAM PYE LTD,00031590
South Ribble Council,http://statistics.data.gov.uk/doc/local-authority/30UN,Property Services,Rep & Maint Premises,2020,Please repair the pot holes in Bison Way Moss Side as per your quotation ref 15739,04/03/2016,0000406470,"1,715.00",Revenue,WILLIAM PYE LTD,00031590
South Ribble Council,http://statistics.data.gov.uk/doc/local-authority/30UN,Area 3 - Parks/Leyland East West,External Contractors Charges,4570,"7 x Benches - Clean and treat with teak oil @ 60 per bench. Bench - Repair, clean and treat with teak",04/03/2016,0000394436,580.00,Revenue,WORDEN WORKSHOP,131124
South Ribble Council,http://statistics.data.gov.uk/doc/local-authority/30UN,Area 3 - Parks/Leyland East West,Grounds Maint Cntrctrs Chgs,4657,Refurbishment of 10no Timber Seats,31/03/2016,0000400845,"1,000.00",Revenue,WORDEN WORKSHOP,131124
South Ribble Council,http://statistics.data.gov.uk/doc/local-authority/30UN,Area 3 - Parks/Leyland East West,Grounds Maint Cntrctrs Chgs,4657,Securing Worden Hall Barn Doors,31/03/2016,0000400845,60.00,Revenue,WORDEN WORKSHOP,131124
South Ribble Council,http://statistics.data.gov.uk/doc/local-authority/30UN,Property Services,Rep & Maint Premises,2020,Worden Park -URGENT - stop tap leaking under the lid running down courtyard outside the craft units,24/03/2016,0000407221,273.50,Revenue,Wright Build Limited,131203
South Ribble Council,http://statistics.data.gov.uk/doc/local-authority/30UN,Property Services,Rep & Maint Premises,2020,supply a vinyl safety floor covering (autumn Beige 4140) with inlaid coconut matting in the doorway  ,31/03/2016,0000412462,599.80,Revenue,Wright Build Limited,131203
South Ribble Council,http://statistics.data.gov.uk/doc/local-authority/30UN,Regeneration,Other Misc,485K,"Concept Development Concept research, development and refinement - based on providing 2-3 initial ",11/03/2016,0000406611,"3,445.00",Revenue,WRITE ANGLE PR & MARKETING LTD,00095303
South Ribble Council,http://statistics.data.gov.uk/doc/local-authority/30UN,Information Services,Peripherals,4248,ProPrint Annual Licence & Maintenance 01/04/16 - 31/03/17,24/03/2016,0000407525,"2,364.00",Revenue,XLPRINT SOFTWARE,00119658
South Ribble Council,http://statistics.data.gov.uk/doc/local-authority/30UN,Shared Assurance Services,Employee Related Insurance,1800,renewal,16/03/2016,0000401491,"116,213.09",Revenue,ZURICH MANAGEMENT SERVICES,00113159
South Ribble Council,http://statistics.data.gov.uk/doc/local-authority/30UN,Shared Assurance Services,Employee Related Insurance,1800,,02/03/2016,0000401492,"3,022.00",Revenue,ZURICH MANAGEMENT SERVICES,00113159
South Ribble Council,http://statistics.data.gov.uk/doc/local-authority/30UN,Shared Assurance Services,Employee Related Insurance,1800,,02/03/2016,0000401493,328.50,Revenue,ZURICH MANAGEMENT SERVICES,00113159
South Ribble Council,http://statistics.data.gov.uk/doc/local-authority/30UN,Shared Assurance Services,Employee Related Insurance,1800,renewal engineering,16/03/2016,0000406879,"1,966.27",Revenue,ZURICH MANAGEMENT SERVICES,00113159
